{"text_format":"1","workbook":"xlsx","n_sheets":3,"sheets":["Grupo Antoline","Databáza","Materiál"],"not_rendered":{"charts":0,"images":0,"macros":1,"external_links":0,"defined_names":0,"comments":0,"pivot_tables":0},"unopened":[],"bounds":{"document_bytes":16777216,"sheet_cells":100000,"rows_first":2000,"rows_last":500,"rows_between":2000,"halvings":0,"cell_chars":16384,"cell_head_chars":4096},"cells_cut":0,"cells_raw":0,"read":"whole","date_system":"1900"}

{"sheet":"Grupo Antoline","index":0,"n_rows":176,"n_cols":67,"rows_kept":176,"cut":false,"hidden":false,"merged":[[2,10,2,13],[4,0,4,1],[4,2,4,6],[4,7,4,9],[4,10,4,13],[0,61,5,63],[0,27,6,27],[0,28,6,28],[0,29,6,29],[0,30,6,30],[0,31,5,60],[0,26,6,26],[0,0,0,13],[0,14,6,14],[0,15,6,15],[0,16,6,16],[0,17,4,19],[0,20,6,20],[1,0,1,13],[2,0,2,1],[2,2,2,6],[2,7,2,9],[0,21,6,21],[0,22,6,22],[0,23,6,23],[0,24,6,24],[0,25,6,25]]}
["GRUPO ANTOLINE",null,null,null,null,null,null,null,null,null,null,null,null,null,"KONTROLOVANÉ PARAMETRE","Skladové čislo podľa systému","Označenie, Výrobca, Typ","Základné rozmery podľa výkresu",null,null,"Kritické rozmery podľa výkresu (iba ak sú určené)","Vizuálna kontrola kvality, povrchová úprava, poškodenia, chyby","Kontrola hodnoty vizuálne, čiarový resp. iný kód výrobcu, watáž, voltáž","Kontrola hodnoty meraním, tolerancia,","Doba použiteľnosti","Rozteč vývodov, Tvarovanie vývodov","Priemer dier, predrez","Revízia, LOT","Skúška zmontovania vrchného krytu zo spodným","Zákzanícka potlač (Umiestnenie a kvalita)","BEZPEČNOSTNÝ PRVOK","Merania elektrických parametrov súčiastok",null,null,null,null,null,null,null,null,null,null,null,null,null,null,null,null,null,null,null,null,null,null,null,null,null,null,null,null,null,"Merania základných rozmerov "]
["VSTUPNÁ KONTROLA  -  protokol"]
["UVOĽNENÉ",null,"UPOZORNENIE",null,null,null,null,"REKLAMÁCIE",null,null,"KONTROL. POLOŽKY"]
[]
[{"$f":"SUMIF($L8:$L469,\"UVOĽNENÉ\",$K8:$K469)","v":5},null,{"$f":"SUMIF($L8:$L469,\"UPOZORNENIE\",$K8:$K469)/2+SUMIF($L8:$L469,\"UPOZOR. / NÁKL.\",$K8:$K469)/3","v":0},null,null,null,null,{"$f":"SUMIF($L8:$L469,\"REKLAMÁCIA\",$K8:$K469)/4","v":0},null,null,{"$f":"A5+C5+H5","v":5}]
[]
["Dátum"," JK","Druh mater.","Lot number","Hodn.","Jednotka","Tol.\n%","Dod. množstvo","Dodávateľ","Výber","Výsledok","Rozhodnutie","Kontroloval","Dodací list č.",null,null,null,"Výška","Šírka","Hĺbka",null,null,null,null,null,null,null,null,null,null,null,1,2,3,4,5,6,7,8,9,10,11,12,13,14,15,16,17,18,19,20,21,22,23,24,25,26,27,28,29,30,"Výška","Šírka","Hĺbka"]
["2021-01-04","GA70-000002","Rigid, FR4, 1.0mm, 2 Layers, 730.9 x 10.4 mm",null,{"$f":"VLOOKUP(B8,Materiál!B:J,3,FALSE)","v":"BMW I20 Front-Right,FR4,1mm,730.9x10.5mm,10x"},{"$f":"VLOOKUP(B8,Materiál!B:J,5,FALSE)","v":"-"},{"$f":"VLOOKUP(B8,Materiál!B:J,4,FALSE)","v":"-"},473,"ICAPE",20,1,{"$f":"IF(K8=1,\"UVOĽNENÉ\",IF(K8=2,\"UPOZORNENIE\",IF(K8=3,\"UPOZOR. / NÁKL.\",IF(K8=4,\"REKLAMÁCIA\",\"-\"))))","v":"UVOĽNENÉ"},"Brišová",91700239,{"$f":"VLOOKUP(B8,Materiál!B:J,8,FALSE)","v":"dps"},"OK","OK","750,87max","161,49max","1+-0,1",null,"OK",null,null,null,null,4920,"OK",null,null,null,null,null,null,null,null,null,null,null,null,null,null,null,null,null,null,null,null,null,null,null,null,null,null,null,null,null,null,null,null,null,750,6.09,1.03,null,{"$f":"IF(G8=\"\",\"-\",(E8-((E8/100)*G8)))","v":{"$error":"#VALUE!"}},{"$f":"IF(G8=\"\",\"-\",(E8+((E8/100)*G8)))","v":{"$error":"#VALUE!"}}]
["2021-01-04","GA70-000003","BMW I20 Rear-Left, 10-násobná",null,{"$f":"VLOOKUP(B9,Materiál!B:J,3,FALSE)","v":"BMW I20 Rear-Left, 10-násobná"},{"$f":"VLOOKUP(B9,Materiál!B:J,5,FALSE)","v":"-"},{"$f":"VLOOKUP(B9,Materiál!B:J,4,FALSE)","v":"-"},500,"ICAPE",20,1,"UVOĽNENÉ","Brišová",91700239,{"$f":"VLOOKUP(B9,Materiál!B:J,8,FALSE)","v":"dps"},"OK","OK","562,4+-0,8","6+-0,1","1+-0,1",null,"OK",null,null,null,null,4920,"OK",null,null,null,null,null,null,null,null,null,null,null,null,null,null,null,null,null,null,null,null,null,null,null,null,null,null,null,null,null,null,null,null,null,560.4,6.08,1.08,null,{"$error":"#VALUE!"},{"$error":"#VALUE!"}]
["2021-01-05","GA70-000004","Rigid, FR4, 1.0mm, 2 Layers, 730.9 x 10.5 mm",null,{"$f":"VLOOKUP(B10,Materiál!B:J,3,FALSE)","v":"BMW I20 Rear-Right, 10-násobná"},{"$f":"VLOOKUP(B10,Materiál!B:J,5,FALSE)","v":"-"},{"$f":"VLOOKUP(B10,Materiál!B:J,4,FALSE)","v":"-"},500,"ICAPE",20,1,"UVOĽNENÉ","Brišová",91700239,{"$f":"VLOOKUP(B10,Materiál!B:J,8,FALSE)","v":"dps"},"OK","OK","562,49max","227,01max","1+-0,1",null,"OK",null,null,null,null,4420,"OK",null,null,null,null,null,null,null,null,null,null,null,null,null,null,null,null,null,null,null,null,null,null,null,null,null,null,null,null,null,null,null,null,null,562.1,6,1.07,null,{"$error":"#VALUE!"},{"$error":"#VALUE!"}]
["2021-01-05","GA70-000001","Rigid, FR4, 1.0mm, 2 Layers, 730.9 x 10.4 mm",null,{"$f":"VLOOKUP(B11,Materiál!B:J,3,FALSE)","v":"BMW I20 Front-Left,FR4,1mm,730.9x10.4mm,10x"},{"$f":"VLOOKUP(B11,Materiál!B:J,5,FALSE)","v":"-"},{"$f":"VLOOKUP(B11,Materiál!B:J,4,FALSE)","v":"-"},359,"ICAPE",20,1,"UVOĽNENÉ","Brišová",91700239,{"$f":"VLOOKUP(B11,Materiál!B:J,8,FALSE)","v":"dps"},"OK","OK","750,87max","161,49max",1.01,null,"OK",null,null,null,null,4420,"OK",null,null,null,null,null,null,null,null,null,null,null,null,null,null,null,null,null,null,null,null,null,null,null,null,null,null,null,null,null,null,null,null,null,162,750,1.0900000000000001,null,{"$error":"#VALUE!"},{"$error":"#VALUE!"}]
["2021-01-14","GA50-000002","4P,Silver pin",null,{"$f":"VLOOKUP(B12,Materiál!B:J,3,FALSE)","v":"4P,Silver pin"},{"$f":"VLOOKUP(B12,Materiál!B:J,5,FALSE)","v":"-"},{"$f":"VLOOKUP(B12,Materiál!B:J,4,FALSE)","v":"-"},1000,"W+P",32,1,"UVOĽNENÉ","Brišová","LI1661255",{"$f":"VLOOKUP(B12,Materiál!B:J,8,FALSE)","v":"kon"},"OK","OK","12max","9,5max","4max","OK","OK",null,null,null,"OK",null,null,null,null,null,null,null,null,null,null,null,null,null,null,null,null,null,null,null,null,null,null,null,null,null,null,null,null,null,null,null,null,null,null,null,12.03,9.4499999999999993,3.53,null,{"$error":"#VALUE!"},{"$error":"#VALUE!"}]
[null,{"$f":"Databáza!E3","v":"GA10-000003"},{"$f":"VLOOKUP(B13,Materiál!B:J,2,FALSE)","v":"Kondenzátor"},{"$f":"Databáza!F3","v":"R-Q-1812-F"},{"$f":"VLOOKUP(B13,Materiál!B:J,3,FALSE)","v":"100nF/16V,X7R"},{"$f":"VLOOKUP(B13,Materiál!B:J,5,FALSE)","v":"nF"},{"$f":"VLOOKUP(B13,Materiál!B:J,4,FALSE)","v":10},null,{"$f":"VLOOKUP(B13,Materiál!B:J,9,FALSE)","v":"RM Component"},null,null,"-",{"$f":"IF(H13=(\"\"),\"\",\"Brišová\")","v":""},null,{"$f":"VLOOKUP(B13,Materiál!B:J,8,FALSE)","v":"elp"},null,null,null,null,null,null,null,null,null,null,null,null,null,null,null,null,null,null,null,null,null,null,null,null,null,null,null,null,null,null,null,null,null,null,null,null,null,null,null,null,null,null,null,null,null,null,null,null,null,null,{"$error":"#VALUE!"},{"$error":"#VALUE!"}]
[null,{"$f":"Databáza!E4","v":"GA10-000003"},{"$f":"VLOOKUP(B14,Materiál!B:J,2,FALSE)","v":"Kondenzátor"},{"$f":"Databáza!F4","v":"R-Q-1812-F"},{"$f":"VLOOKUP(B14,Materiál!B:J,3,FALSE)","v":"100nF/16V,X7R"},{"$f":"VLOOKUP(B14,Materiál!B:J,5,FALSE)","v":"nF"},{"$f":"VLOOKUP(B14,Materiál!B:J,4,FALSE)","v":10},null,{"$f":"VLOOKUP(B14,Materiál!B:J,9,FALSE)","v":"RM Component"},null,null,{"$f":"IF(K14=1,\"UVOĽNENÉ\",IF(K14=2,\"UPOZORNENIE\",IF(K14=3,\"UPOZOR. / NÁKL.\",IF(K14=4,\"REKLAMÁCIA\",\"-\"))))","v":"-"},{"$f":"IF(H14=(\"\"),\"\",\"Brišová\")","v":""},null,{"$f":"VLOOKUP(B14,Materiál!B:J,8,FALSE)","v":"elp"},null,null,null,null,null,null,null,null,null,null,null,null,null,null,null,null,null,null,null,null,null,null,null,null,null,null,null,null,null,null,null,null,null,null,null,null,null,null,null,null,null,null,null,null,null,null,null,null,null,null,{"$error":"#VALUE!"},{"$error":"#VALUE!"}]
[null,{"$f":"Databáza!E5","v":0},{"$f":"VLOOKUP(B15,Materiál!B:J,2,FALSE)","v":{"$error":"#N/A"}},{"$f":"Databáza!F5","v":0},{"$f":"VLOOKUP(B15,Materiál!B:J,3,FALSE)","v":{"$error":"#N/A"}},{"$f":"VLOOKUP(B15,Materiál!B:J,5,FALSE)","v":{"$error":"#N/A"}},{"$f":"VLOOKUP(B15,Materiál!B:J,4,FALSE)","v":{"$error":"#N/A"}},null,{"$f":"VLOOKUP(B15,Materiál!B:J,9,FALSE)","v":{"$error":"#N/A"}},null,null,"-","",null,{"$f":"VLOOKUP(B15,Materiál!B:J,8,FALSE)","v":{"$error":"#N/A"}},null,null,null,null,null,null,null,null,null,null,null,null,null,null,null,null,null,null,null,null,null,null,null,null,null,null,null,null,null,null,null,null,null,null,null,null,null,null,null,null,null,null,null,null,null,null,null,null,null,null,{"$error":"#N/A"},{"$error":"#N/A"}]
[null,{"$f":"Databáza!E6","v":0},{"$f":"VLOOKUP(B16,Materiál!B:J,2,FALSE)","v":{"$error":"#N/A"}},{"$f":"Databáza!F6","v":0},{"$f":"VLOOKUP(B16,Materiál!B:J,3,FALSE)","v":{"$error":"#N/A"}},{"$f":"VLOOKUP(B16,Materiál!B:J,5,FALSE)","v":{"$error":"#N/A"}},{"$f":"VLOOKUP(B16,Materiál!B:J,4,FALSE)","v":{"$error":"#N/A"}},null,{"$f":"VLOOKUP(B16,Materiál!B:J,9,FALSE)","v":{"$error":"#N/A"}},null,null,"-","",null,{"$f":"VLOOKUP(B16,Materiál!B:J,8,FALSE)","v":{"$error":"#N/A"}},null,null,null,null,null,null,null,null,null,null,null,null,null,null,null,null,null,null,null,null,null,null,null,null,null,null,null,null,null,null,null,null,null,null,null,null,null,null,null,null,null,null,null,null,null,null,null,null,null,null,{"$error":"#N/A"},{"$error":"#N/A"}]
[null,{"$f":"Databáza!E7","v":0},{"$f":"VLOOKUP(B17,Materiál!B:J,2,FALSE)","v":{"$error":"#N/A"}},{"$f":"Databáza!F7","v":0},{"$f":"VLOOKUP(B17,Materiál!B:J,3,FALSE)","v":{"$error":"#N/A"}},{"$f":"VLOOKUP(B17,Materiál!B:J,5,FALSE)","v":{"$error":"#N/A"}},{"$f":"VLOOKUP(B17,Materiál!B:J,4,FALSE)","v":{"$error":"#N/A"}},null,{"$f":"VLOOKUP(B17,Materiál!B:J,9,FALSE)","v":{"$error":"#N/A"}},null,null,"-","",null,{"$f":"VLOOKUP(B17,Materiál!B:J,8,FALSE)","v":{"$error":"#N/A"}},null,null,null,null,null,null,null,null,null,null,null,null,null,null,null,null,null,null,null,null,null,null,null,null,null,null,null,null,null,null,null,null,null,null,null,null,null,null,null,null,null,null,null,null,null,null,null,null,null,null,{"$error":"#N/A"},{"$error":"#N/A"}]
[null,{"$f":"Databáza!E8","v":0},{"$f":"VLOOKUP(B18,Materiál!B:J,2,FALSE)","v":{"$error":"#N/A"}},{"$f":"Databáza!F8","v":0},{"$f":"VLOOKUP(B18,Materiál!B:J,3,FALSE)","v":{"$error":"#N/A"}},{"$f":"VLOOKUP(B18,Materiál!B:J,5,FALSE)","v":{"$error":"#N/A"}},{"$f":"VLOOKUP(B18,Materiál!B:J,4,FALSE)","v":{"$error":"#N/A"}},null,{"$f":"VLOOKUP(B18,Materiál!B:J,9,FALSE)","v":{"$error":"#N/A"}},null,null,"-","",null,{"$f":"VLOOKUP(B18,Materiál!B:J,8,FALSE)","v":{"$error":"#N/A"}},null,null,null,null,null,null,null,null,null,null,null,null,null,null,null,null,null,null,null,null,null,null,null,null,null,null,null,null,null,null,null,null,null,null,null,null,null,null,null,null,null,null,null,null,null,null,null,null,null,null,{"$error":"#N/A"},{"$error":"#N/A"}]
[null,{"$f":"Databáza!E9","v":0},{"$f":"VLOOKUP(B19,Materiál!B:J,2,FALSE)","v":{"$error":"#N/A"}},{"$f":"Databáza!F9","v":0},{"$f":"VLOOKUP(B19,Materiál!B:J,3,FALSE)","v":{"$error":"#N/A"}},{"$f":"VLOOKUP(B19,Materiál!B:J,5,FALSE)","v":{"$error":"#N/A"}},{"$f":"VLOOKUP(B19,Materiál!B:J,4,FALSE)","v":{"$error":"#N/A"}},null,{"$f":"VLOOKUP(B19,Materiál!B:J,9,FALSE)","v":{"$error":"#N/A"}},null,null,"-","",null,{"$f":"VLOOKUP(B19,Materiál!B:J,8,FALSE)","v":{"$error":"#N/A"}},null,null,null,null,null,null,null,null,null,null,null,null,null,null,null,null,null,null,null,null,null,null,null,null,null,null,null,null,null,null,null,null,null,null,null,null,null,null,null,null,null,null,null,null,null,null,null,null,null,null,{"$error":"#N/A"},{"$error":"#N/A"}]
[null,{"$f":"Databáza!E10","v":0},{"$f":"VLOOKUP(B20,Materiál!B:J,2,FALSE)","v":{"$error":"#N/A"}},{"$f":"Databáza!F10","v":0},{"$f":"VLOOKUP(B20,Materiál!B:J,3,FALSE)","v":{"$error":"#N/A"}},{"$f":"VLOOKUP(B20,Materiál!B:J,5,FALSE)","v":{"$error":"#N/A"}},{"$f":"VLOOKUP(B20,Materiál!B:J,4,FALSE)","v":{"$error":"#N/A"}},null,{"$f":"VLOOKUP(B20,Materiál!B:J,9,FALSE)","v":{"$error":"#N/A"}},null,null,"-","",null,{"$f":"VLOOKUP(B20,Materiál!B:J,8,FALSE)","v":{"$error":"#N/A"}},null,null,null,null,null,null,null,null,null,null,null,null,null,null,null,null,null,null,null,null,null,null,null,null,null,null,null,null,null,null,null,null,null,null,null,null,null,null,null,null,null,null,null,null,null,null,null,null,null,null,{"$error":"#N/A"},{"$error":"#N/A"}]
[null,{"$f":"Databáza!E11","v":0},{"$f":"VLOOKUP(B21,Materiál!B:J,2,FALSE)","v":{"$error":"#N/A"}},{"$f":"Databáza!F11","v":0},{"$f":"VLOOKUP(B21,Materiál!B:J,3,FALSE)","v":{"$error":"#N/A"}},{"$f":"VLOOKUP(B21,Materiál!B:J,5,FALSE)","v":{"$error":"#N/A"}},{"$f":"VLOOKUP(B21,Materiál!B:J,4,FALSE)","v":{"$error":"#N/A"}},null,{"$f":"VLOOKUP(B21,Materiál!B:J,9,FALSE)","v":{"$error":"#N/A"}},null,null,"-","",null,{"$f":"VLOOKUP(B21,Materiál!B:J,8,FALSE)","v":{"$error":"#N/A"}},null,null,null,null,null,null,null,null,null,null,null,null,null,null,null,null,null,null,null,null,null,null,null,null,null,null,null,null,null,null,null,null,null,null,null,null,null,null,null,null,null,null,null,null,null,null,null,null,null,null,{"$error":"#N/A"},{"$error":"#N/A"}]
[null,{"$f":"Databáza!E12","v":0},{"$f":"VLOOKUP(B22,Materiál!B:J,2,FALSE)","v":{"$error":"#N/A"}},{"$f":"Databáza!F12","v":0},{"$f":"VLOOKUP(B22,Materiál!B:J,3,FALSE)","v":{"$error":"#N/A"}},{"$f":"VLOOKUP(B22,Materiál!B:J,5,FALSE)","v":{"$error":"#N/A"}},{"$f":"VLOOKUP(B22,Materiál!B:J,4,FALSE)","v":{"$error":"#N/A"}},null,{"$f":"VLOOKUP(B22,Materiál!B:J,9,FALSE)","v":{"$error":"#N/A"}},null,null,"-","",null,{"$f":"VLOOKUP(B22,Materiál!B:J,8,FALSE)","v":{"$error":"#N/A"}},null,null,null,null,null,null,null,null,null,null,null,null,null,null,null,null,null,null,null,null,null,null,null,null,null,null,null,null,null,null,null,null,null,null,null,null,null,null,null,null,null,null,null,null,null,null,null,null,null,null,{"$error":"#N/A"},{"$error":"#N/A"}]
[null,{"$f":"Databáza!E13","v":0},{"$f":"VLOOKUP(B23,Materiál!B:J,2,FALSE)","v":{"$error":"#N/A"}},{"$f":"Databáza!F13","v":0},{"$f":"VLOOKUP(B23,Materiál!B:J,3,FALSE)","v":{"$error":"#N/A"}},{"$f":"VLOOKUP(B23,Materiál!B:J,5,FALSE)","v":{"$error":"#N/A"}},{"$f":"VLOOKUP(B23,Materiál!B:J,4,FALSE)","v":{"$error":"#N/A"}},null,{"$f":"VLOOKUP(B23,Materiál!B:J,9,FALSE)","v":{"$error":"#N/A"}},null,null,"-","",null,{"$f":"VLOOKUP(B23,Materiál!B:J,8,FALSE)","v":{"$error":"#N/A"}},null,null,null,null,null,null,null,null,null,null,null,null,null,null,null,null,null,null,null,null,null,null,null,null,null,null,null,null,null,null,null,null,null,null,null,null,null,null,null,null,null,null,null,null,null,null,null,null,null,null,{"$error":"#N/A"},{"$error":"#N/A"}]
[null,{"$f":"Databáza!E14","v":0},{"$f":"VLOOKUP(B24,Materiál!B:J,2,FALSE)","v":{"$error":"#N/A"}},{"$f":"Databáza!F14","v":0},{"$f":"VLOOKUP(B24,Materiál!B:J,3,FALSE)","v":{"$error":"#N/A"}},{"$f":"VLOOKUP(B24,Materiál!B:J,5,FALSE)","v":{"$error":"#N/A"}},{"$f":"VLOOKUP(B24,Materiál!B:J,4,FALSE)","v":{"$error":"#N/A"}},null,{"$f":"VLOOKUP(B24,Materiál!B:J,9,FALSE)","v":{"$error":"#N/A"}},null,null,"-","",null,{"$f":"VLOOKUP(B24,Materiál!B:J,8,FALSE)","v":{"$error":"#N/A"}},null,null,null,null,null,null,null,null,null,null,null,null,null,null,null,null,null,null,null,null,null,null,null,null,null,null,null,null,null,null,null,null,null,null,null,null,null,null,null,null,null,null,null,null,null,null,null,null,null,null,{"$error":"#N/A"},{"$error":"#N/A"}]
[null,{"$f":"Databáza!E15","v":0},{"$f":"VLOOKUP(B25,Materiál!B:J,2,FALSE)","v":{"$error":"#N/A"}},{"$f":"Databáza!F15","v":0},{"$f":"VLOOKUP(B25,Materiál!B:J,3,FALSE)","v":{"$error":"#N/A"}},{"$f":"VLOOKUP(B25,Materiál!B:J,5,FALSE)","v":{"$error":"#N/A"}},{"$f":"VLOOKUP(B25,Materiál!B:J,4,FALSE)","v":{"$error":"#N/A"}},null,{"$f":"VLOOKUP(B25,Materiál!B:J,9,FALSE)","v":{"$error":"#N/A"}},null,null,"-","",null,{"$f":"VLOOKUP(B25,Materiál!B:J,8,FALSE)","v":{"$error":"#N/A"}},null,null,null,null,null,null,null,null,null,null,null,null,null,null,null,null,null,null,null,null,null,null,null,null,null,null,null,null,null,null,null,null,null,null,null,null,null,null,null,null,null,null,null,null,null,null,null,null,null,null,{"$error":"#N/A"},{"$error":"#N/A"}]
[null,{"$f":"Databáza!E16","v":0},{"$f":"VLOOKUP(B26,Materiál!B:J,2,FALSE)","v":{"$error":"#N/A"}},{"$f":"Databáza!F16","v":0},{"$f":"VLOOKUP(B26,Materiál!B:J,3,FALSE)","v":{"$error":"#N/A"}},{"$f":"VLOOKUP(B26,Materiál!B:J,5,FALSE)","v":{"$error":"#N/A"}},{"$f":"VLOOKUP(B26,Materiál!B:J,4,FALSE)","v":{"$error":"#N/A"}},null,{"$f":"VLOOKUP(B26,Materiál!B:J,9,FALSE)","v":{"$error":"#N/A"}},null,null,"-","",null,{"$f":"VLOOKUP(B26,Materiál!B:J,8,FALSE)","v":{"$error":"#N/A"}},null,null,null,null,null,null,null,null,null,null,null,null,null,null,null,null,null,null,null,null,null,null,null,null,null,null,null,null,null,null,null,null,null,null,null,null,null,null,null,null,null,null,null,null,null,null,null,null,null,null,{"$error":"#N/A"},{"$error":"#N/A"}]
[null,{"$f":"Databáza!E17","v":0},{"$f":"VLOOKUP(B27,Materiál!B:J,2,FALSE)","v":{"$error":"#N/A"}},{"$f":"Databáza!F17","v":0},{"$f":"VLOOKUP(B27,Materiál!B:J,3,FALSE)","v":{"$error":"#N/A"}},{"$f":"VLOOKUP(B27,Materiál!B:J,5,FALSE)","v":{"$error":"#N/A"}},{"$f":"VLOOKUP(B27,Materiál!B:J,4,FALSE)","v":{"$error":"#N/A"}},null,{"$f":"VLOOKUP(B27,Materiál!B:J,9,FALSE)","v":{"$error":"#N/A"}},null,null,"-","",null,{"$f":"VLOOKUP(B27,Materiál!B:J,8,FALSE)","v":{"$error":"#N/A"}},null,null,null,null,null,null,null,null,null,null,null,null,null,null,null,null,null,null,null,null,null,null,null,null,null,null,null,null,null,null,null,null,null,null,null,null,null,null,null,null,null,null,null,null,null,null,null,null,null,null,{"$error":"#N/A"},{"$error":"#N/A"}]
[null,{"$f":"Databáza!E18","v":0},{"$f":"VLOOKUP(B28,Materiál!B:J,2,FALSE)","v":{"$error":"#N/A"}},{"$f":"Databáza!F18","v":0},{"$f":"VLOOKUP(B28,Materiál!B:J,3,FALSE)","v":{"$error":"#N/A"}},{"$f":"VLOOKUP(B28,Materiál!B:J,5,FALSE)","v":{"$error":"#N/A"}},{"$f":"VLOOKUP(B28,Materiál!B:J,4,FALSE)","v":{"$error":"#N/A"}},null,{"$f":"VLOOKUP(B28,Materiál!B:J,9,FALSE)","v":{"$error":"#N/A"}},null,null,"-","",null,{"$f":"VLOOKUP(B28,Materiál!B:J,8,FALSE)","v":{"$error":"#N/A"}},null,null,null,null,null,null,null,null,null,null,null,null,null,null,null,null,null,null,null,null,null,null,null,null,null,null,null,null,null,null,null,null,null,null,null,null,null,null,null,null,null,null,null,null,null,null,null,null,null,null,{"$error":"#N/A"},{"$error":"#N/A"}]
[null,{"$f":"Databáza!E19","v":0},{"$f":"VLOOKUP(B29,Materiál!B:J,2,FALSE)","v":{"$error":"#N/A"}},{"$f":"Databáza!F19","v":0},{"$f":"VLOOKUP(B29,Materiál!B:J,3,FALSE)","v":{"$error":"#N/A"}},{"$f":"VLOOKUP(B29,Materiál!B:J,5,FALSE)","v":{"$error":"#N/A"}},{"$f":"VLOOKUP(B29,Materiál!B:J,4,FALSE)","v":{"$error":"#N/A"}},null,{"$f":"VLOOKUP(B29,Materiál!B:J,9,FALSE)","v":{"$error":"#N/A"}},null,null,"-","",null,{"$f":"VLOOKUP(B29,Materiál!B:J,8,FALSE)","v":{"$error":"#N/A"}},null,null,null,null,null,null,null,null,null,null,null,null,null,null,null,null,null,null,null,null,null,null,null,null,null,null,null,null,null,null,null,null,null,null,null,null,null,null,null,null,null,null,null,null,null,null,null,null,null,null,{"$error":"#N/A"},{"$error":"#N/A"}]
[null,{"$f":"Databáza!E20","v":0},{"$f":"VLOOKUP(B30,Materiál!B:J,2,FALSE)","v":{"$error":"#N/A"}},{"$f":"Databáza!F20","v":0},{"$f":"VLOOKUP(B30,Materiál!B:J,3,FALSE)","v":{"$error":"#N/A"}},{"$f":"VLOOKUP(B30,Materiál!B:J,5,FALSE)","v":{"$error":"#N/A"}},{"$f":"VLOOKUP(B30,Materiál!B:J,4,FALSE)","v":{"$error":"#N/A"}},null,{"$f":"VLOOKUP(B30,Materiál!B:J,9,FALSE)","v":{"$error":"#N/A"}},null,null,"-","",null,{"$f":"VLOOKUP(B30,Materiál!B:J,8,FALSE)","v":{"$error":"#N/A"}},null,null,null,null,null,null,null,null,null,null,null,null,null,null,null,null,null,null,null,null,null,null,null,null,null,null,null,null,null,null,null,null,null,null,null,null,null,null,null,null,null,null,null,null,null,null,null,null,null,null,{"$error":"#N/A"},{"$error":"#N/A"}]
[null,{"$f":"Databáza!E21","v":0},{"$f":"VLOOKUP(B31,Materiál!B:J,2,FALSE)","v":{"$error":"#N/A"}},{"$f":"Databáza!F21","v":0},{"$f":"VLOOKUP(B31,Materiál!B:J,3,FALSE)","v":{"$error":"#N/A"}},{"$f":"VLOOKUP(B31,Materiál!B:J,5,FALSE)","v":{"$error":"#N/A"}},{"$f":"VLOOKUP(B31,Materiál!B:J,4,FALSE)","v":{"$error":"#N/A"}},null,{"$f":"VLOOKUP(B31,Materiál!B:J,9,FALSE)","v":{"$error":"#N/A"}},null,null,"-","",null,{"$f":"VLOOKUP(B31,Materiál!B:J,8,FALSE)","v":{"$error":"#N/A"}},null,null,null,null,null,null,null,null,null,null,null,null,null,null,null,null,null,null,null,null,null,null,null,null,null,null,null,null,null,null,null,null,null,null,null,null,null,null,null,null,null,null,null,null,null,null,null,null,null,null,{"$error":"#N/A"},{"$error":"#N/A"}]
[null,{"$f":"Databáza!E22","v":0},{"$f":"VLOOKUP(B32,Materiál!B:J,2,FALSE)","v":{"$error":"#N/A"}},{"$f":"Databáza!F22","v":0},{"$f":"VLOOKUP(B32,Materiál!B:J,3,FALSE)","v":{"$error":"#N/A"}},{"$f":"VLOOKUP(B32,Materiál!B:J,5,FALSE)","v":{"$error":"#N/A"}},{"$f":"VLOOKUP(B32,Materiál!B:J,4,FALSE)","v":{"$error":"#N/A"}},null,{"$f":"VLOOKUP(B32,Materiál!B:J,9,FALSE)","v":{"$error":"#N/A"}},null,null,"-","",null,{"$f":"VLOOKUP(B32,Materiál!B:J,8,FALSE)","v":{"$error":"#N/A"}},null,null,null,null,null,null,null,null,null,null,null,null,null,null,null,null,null,null,null,null,null,null,null,null,null,null,null,null,null,null,null,null,null,null,null,null,null,null,null,null,null,null,null,null,null,null,null,null,null,null,{"$error":"#N/A"},{"$error":"#N/A"}]
[null,{"$f":"Databáza!E23","v":0},{"$f":"VLOOKUP(B33,Materiál!B:J,2,FALSE)","v":{"$error":"#N/A"}},{"$f":"Databáza!F23","v":0},{"$f":"VLOOKUP(B33,Materiál!B:J,3,FALSE)","v":{"$error":"#N/A"}},{"$f":"VLOOKUP(B33,Materiál!B:J,5,FALSE)","v":{"$error":"#N/A"}},{"$f":"VLOOKUP(B33,Materiál!B:J,4,FALSE)","v":{"$error":"#N/A"}},null,{"$f":"VLOOKUP(B33,Materiál!B:J,9,FALSE)","v":{"$error":"#N/A"}},null,null,"-","",null,{"$f":"VLOOKUP(B33,Materiál!B:J,8,FALSE)","v":{"$error":"#N/A"}},null,null,null,null,null,null,null,null,null,null,null,null,null,null,null,null,null,null,null,null,null,null,null,null,null,null,null,null,null,null,null,null,null,null,null,null,null,null,null,null,null,null,null,null,null,null,null,null,null,null,{"$error":"#N/A"},{"$error":"#N/A"}]
[null,{"$f":"Databáza!E24","v":0},{"$f":"VLOOKUP(B34,Materiál!B:J,2,FALSE)","v":{"$error":"#N/A"}},{"$f":"Databáza!F24","v":0},{"$f":"VLOOKUP(B34,Materiál!B:J,3,FALSE)","v":{"$error":"#N/A"}},{"$f":"VLOOKUP(B34,Materiál!B:J,5,FALSE)","v":{"$error":"#N/A"}},{"$f":"VLOOKUP(B34,Materiál!B:J,4,FALSE)","v":{"$error":"#N/A"}},null,{"$f":"VLOOKUP(B34,Materiál!B:J,9,FALSE)","v":{"$error":"#N/A"}},null,null,"-","",null,{"$f":"VLOOKUP(B34,Materiál!B:J,8,FALSE)","v":{"$error":"#N/A"}},null,null,null,null,null,null,null,null,null,null,null,null,null,null,null,null,null,null,null,null,null,null,null,null,null,null,null,null,null,null,null,null,null,null,null,null,null,null,null,null,null,null,null,null,null,null,null,null,null,null,{"$error":"#N/A"},{"$error":"#N/A"}]
[null,{"$f":"Databáza!E25","v":0},{"$f":"VLOOKUP(B35,Materiál!B:J,2,FALSE)","v":{"$error":"#N/A"}},{"$f":"Databáza!F25","v":0},{"$f":"VLOOKUP(B35,Materiál!B:J,3,FALSE)","v":{"$error":"#N/A"}},{"$f":"VLOOKUP(B35,Materiál!B:J,5,FALSE)","v":{"$error":"#N/A"}},{"$f":"VLOOKUP(B35,Materiál!B:J,4,FALSE)","v":{"$error":"#N/A"}},null,{"$f":"VLOOKUP(B35,Materiál!B:J,9,FALSE)","v":{"$error":"#N/A"}},null,null,"-","",null,{"$f":"VLOOKUP(B35,Materiál!B:J,8,FALSE)","v":{"$error":"#N/A"}},null,null,null,null,null,null,null,null,null,null,null,null,null,null,null,null,null,null,null,null,null,null,null,null,null,null,null,null,null,null,null,null,null,null,null,null,null,null,null,null,null,null,null,null,null,null,null,null,null,null,{"$error":"#N/A"},{"$error":"#N/A"}]
[null,{"$f":"Databáza!E26","v":0},{"$f":"VLOOKUP(B36,Materiál!B:J,2,FALSE)","v":{"$error":"#N/A"}},{"$f":"Databáza!F26","v":0},{"$f":"VLOOKUP(B36,Materiál!B:J,3,FALSE)","v":{"$error":"#N/A"}},{"$f":"VLOOKUP(B36,Materiál!B:J,5,FALSE)","v":{"$error":"#N/A"}},{"$f":"VLOOKUP(B36,Materiál!B:J,4,FALSE)","v":{"$error":"#N/A"}},null,{"$f":"VLOOKUP(B36,Materiál!B:J,9,FALSE)","v":{"$error":"#N/A"}},null,null,"-","",null,{"$f":"VLOOKUP(B36,Materiál!B:J,8,FALSE)","v":{"$error":"#N/A"}},null,null,null,null,null,null,null,null,null,null,null,null,null,null,null,null,null,null,null,null,null,null,null,null,null,null,null,null,null,null,null,null,null,null,null,null,null,null,null,null,null,null,null,null,null,null,null,null,null,null,{"$error":"#N/A"},{"$error":"#N/A"}]
[null,{"$f":"Databáza!E27","v":0},{"$f":"VLOOKUP(B37,Materiál!B:J,2,FALSE)","v":{"$error":"#N/A"}},{"$f":"Databáza!F27","v":0},{"$f":"VLOOKUP(B37,Materiál!B:J,3,FALSE)","v":{"$error":"#N/A"}},{"$f":"VLOOKUP(B37,Materiál!B:J,5,FALSE)","v":{"$error":"#N/A"}},{"$f":"VLOOKUP(B37,Materiál!B:J,4,FALSE)","v":{"$error":"#N/A"}},null,{"$f":"VLOOKUP(B37,Materiál!B:J,9,FALSE)","v":{"$error":"#N/A"}},null,null,"-","",null,{"$f":"VLOOKUP(B37,Materiál!B:J,8,FALSE)","v":{"$error":"#N/A"}},null,null,null,null,null,null,null,null,null,null,null,null,null,null,null,null,null,null,null,null,null,null,null,null,null,null,null,null,null,null,null,null,null,null,null,null,null,null,null,null,null,null,null,null,null,null,null,null,null,null,{"$error":"#N/A"},{"$error":"#N/A"}]
[null,{"$f":"Databáza!E28","v":0},{"$f":"VLOOKUP(B38,Materiál!B:J,2,FALSE)","v":{"$error":"#N/A"}},{"$f":"Databáza!F28","v":0},{"$f":"VLOOKUP(B38,Materiál!B:J,3,FALSE)","v":{"$error":"#N/A"}},{"$f":"VLOOKUP(B38,Materiál!B:J,5,FALSE)","v":{"$error":"#N/A"}},{"$f":"VLOOKUP(B38,Materiál!B:J,4,FALSE)","v":{"$error":"#N/A"}},null,{"$f":"VLOOKUP(B38,Materiál!B:J,9,FALSE)","v":{"$error":"#N/A"}},null,null,"-","",null,{"$f":"VLOOKUP(B38,Materiál!B:J,8,FALSE)","v":{"$error":"#N/A"}},null,null,null,null,null,null,null,null,null,null,null,null,null,null,null,null,null,null,null,null,null,null,null,null,null,null,null,null,null,null,null,null,null,null,null,null,null,null,null,null,null,null,null,null,null,null,null,null,null,null,{"$error":"#N/A"},{"$error":"#N/A"}]
[null,{"$f":"Databáza!E29","v":0},{"$f":"VLOOKUP(B39,Materiál!B:J,2,FALSE)","v":{"$error":"#N/A"}},{"$f":"Databáza!F29","v":0},{"$f":"VLOOKUP(B39,Materiál!B:J,3,FALSE)","v":{"$error":"#N/A"}},{"$f":"VLOOKUP(B39,Materiál!B:J,5,FALSE)","v":{"$error":"#N/A"}},{"$f":"VLOOKUP(B39,Materiál!B:J,4,FALSE)","v":{"$error":"#N/A"}},null,{"$f":"VLOOKUP(B39,Materiál!B:J,9,FALSE)","v":{"$error":"#N/A"}},null,null,"-","",null,{"$f":"VLOOKUP(B39,Materiál!B:J,8,FALSE)","v":{"$error":"#N/A"}},null,null,null,null,null,null,null,null,null,null,null,null,null,null,null,null,null,null,null,null,null,null,null,null,null,null,null,null,null,null,null,null,null,null,null,null,null,null,null,null,null,null,null,null,null,null,null,null,null,null,{"$error":"#N/A"},{"$error":"#N/A"}]
[null,{"$f":"Databáza!E30","v":0},{"$f":"VLOOKUP(B40,Materiál!B:J,2,FALSE)","v":{"$error":"#N/A"}},{"$f":"Databáza!F30","v":0},{"$f":"VLOOKUP(B40,Materiál!B:J,3,FALSE)","v":{"$error":"#N/A"}},{"$f":"VLOOKUP(B40,Materiál!B:J,5,FALSE)","v":{"$error":"#N/A"}},{"$f":"VLOOKUP(B40,Materiál!B:J,4,FALSE)","v":{"$error":"#N/A"}},null,{"$f":"VLOOKUP(B40,Materiál!B:J,9,FALSE)","v":{"$error":"#N/A"}},null,null,"-","",null,{"$f":"VLOOKUP(B40,Materiál!B:J,8,FALSE)","v":{"$error":"#N/A"}},null,null,null,null,null,null,null,null,null,null,null,null,null,null,null,null,null,null,null,null,null,null,null,null,null,null,null,null,null,null,null,null,null,null,null,null,null,null,null,null,null,null,null,null,null,null,null,null,null,null,{"$error":"#N/A"},{"$error":"#N/A"}]
[null,{"$f":"Databáza!E31","v":0},{"$f":"VLOOKUP(B41,Materiál!B:J,2,FALSE)","v":{"$error":"#N/A"}},{"$f":"Databáza!F31","v":0},{"$f":"VLOOKUP(B41,Materiál!B:J,3,FALSE)","v":{"$error":"#N/A"}},{"$f":"VLOOKUP(B41,Materiál!B:J,5,FALSE)","v":{"$error":"#N/A"}},{"$f":"VLOOKUP(B41,Materiál!B:J,4,FALSE)","v":{"$error":"#N/A"}},null,{"$f":"VLOOKUP(B41,Materiál!B:J,9,FALSE)","v":{"$error":"#N/A"}},null,null,"-","",null,{"$f":"VLOOKUP(B41,Materiál!B:J,8,FALSE)","v":{"$error":"#N/A"}},null,null,null,null,null,null,null,null,null,null,null,null,null,null,null,null,null,null,null,null,null,null,null,null,null,null,null,null,null,null,null,null,null,null,null,null,null,null,null,null,null,null,null,null,null,null,null,null,null,null,{"$error":"#N/A"},{"$error":"#N/A"}]
[null,{"$f":"Databáza!E32","v":0},{"$f":"VLOOKUP(B42,Materiál!B:J,2,FALSE)","v":{"$error":"#N/A"}},{"$f":"Databáza!F32","v":0},{"$f":"VLOOKUP(B42,Materiál!B:J,3,FALSE)","v":{"$error":"#N/A"}},{"$f":"VLOOKUP(B42,Materiál!B:J,5,FALSE)","v":{"$error":"#N/A"}},{"$f":"VLOOKUP(B42,Materiál!B:J,4,FALSE)","v":{"$error":"#N/A"}},null,{"$f":"VLOOKUP(B42,Materiál!B:J,9,FALSE)","v":{"$error":"#N/A"}},null,null,"-","",null,{"$f":"VLOOKUP(B42,Materiál!B:J,8,FALSE)","v":{"$error":"#N/A"}},null,null,null,null,null,null,null,null,null,null,null,null,null,null,null,null,null,null,null,null,null,null,null,null,null,null,null,null,null,null,null,null,null,null,null,null,null,null,null,null,null,null,null,null,null,null,null,null,null,null,{"$error":"#N/A"},{"$error":"#N/A"}]
[null,{"$f":"Databáza!E33","v":0},{"$f":"VLOOKUP(B43,Materiál!B:J,2,FALSE)","v":{"$error":"#N/A"}},{"$f":"Databáza!F33","v":0},{"$f":"VLOOKUP(B43,Materiál!B:J,3,FALSE)","v":{"$error":"#N/A"}},{"$f":"VLOOKUP(B43,Materiál!B:J,5,FALSE)","v":{"$error":"#N/A"}},{"$f":"VLOOKUP(B43,Materiál!B:J,4,FALSE)","v":{"$error":"#N/A"}},null,{"$f":"VLOOKUP(B43,Materiál!B:J,9,FALSE)","v":{"$error":"#N/A"}},null,null,"-","",null,{"$f":"VLOOKUP(B43,Materiál!B:J,8,FALSE)","v":{"$error":"#N/A"}},null,null,null,null,null,null,null,null,null,null,null,null,null,null,null,null,null,null,null,null,null,null,null,null,null,null,null,null,null,null,null,null,null,null,null,null,null,null,null,null,null,null,null,null,null,null,null,null,null,null,{"$error":"#N/A"},{"$error":"#N/A"}]
[null,{"$f":"Databáza!E34","v":0},{"$f":"VLOOKUP(B44,Materiál!B:J,2,FALSE)","v":{"$error":"#N/A"}},{"$f":"Databáza!F34","v":0},{"$f":"VLOOKUP(B44,Materiál!B:J,3,FALSE)","v":{"$error":"#N/A"}},{"$f":"VLOOKUP(B44,Materiál!B:J,5,FALSE)","v":{"$error":"#N/A"}},{"$f":"VLOOKUP(B44,Materiál!B:J,4,FALSE)","v":{"$error":"#N/A"}},null,{"$f":"VLOOKUP(B44,Materiál!B:J,9,FALSE)","v":{"$error":"#N/A"}},null,null,"-","",null,{"$f":"VLOOKUP(B44,Materiál!B:J,8,FALSE)","v":{"$error":"#N/A"}},null,null,null,null,null,null,null,null,null,null,null,null,null,null,null,null,null,null,null,null,null,null,null,null,null,null,null,null,null,null,null,null,null,null,null,null,null,null,null,null,null,null,null,null,null,null,null,null,null,null,{"$error":"#N/A"},{"$error":"#N/A"}]
[null,{"$f":"Databáza!E35","v":0},{"$f":"VLOOKUP(B45,Materiál!B:J,2,FALSE)","v":{"$error":"#N/A"}},{"$f":"Databáza!F35","v":0},{"$f":"VLOOKUP(B45,Materiál!B:J,3,FALSE)","v":{"$error":"#N/A"}},{"$f":"VLOOKUP(B45,Materiál!B:J,5,FALSE)","v":{"$error":"#N/A"}},{"$f":"VLOOKUP(B45,Materiál!B:J,4,FALSE)","v":{"$error":"#N/A"}},null,{"$f":"VLOOKUP(B45,Materiál!B:J,9,FALSE)","v":{"$error":"#N/A"}},null,null,"-","",null,{"$f":"VLOOKUP(B45,Materiál!B:J,8,FALSE)","v":{"$error":"#N/A"}},null,null,null,null,null,null,null,null,null,null,null,null,null,null,null,null,null,null,null,null,null,null,null,null,null,null,null,null,null,null,null,null,null,null,null,null,null,null,null,null,null,null,null,null,null,null,null,null,null,null,{"$error":"#N/A"},{"$error":"#N/A"}]
[null,{"$f":"Databáza!E36","v":0},{"$f":"VLOOKUP(B46,Materiál!B:J,2,FALSE)","v":{"$error":"#N/A"}},{"$f":"Databáza!F36","v":0},{"$f":"VLOOKUP(B46,Materiál!B:J,3,FALSE)","v":{"$error":"#N/A"}},{"$f":"VLOOKUP(B46,Materiál!B:J,5,FALSE)","v":{"$error":"#N/A"}},{"$f":"VLOOKUP(B46,Materiál!B:J,4,FALSE)","v":{"$error":"#N/A"}},null,{"$f":"VLOOKUP(B46,Materiál!B:J,9,FALSE)","v":{"$error":"#N/A"}},null,null,"-","",null,{"$f":"VLOOKUP(B46,Materiál!B:J,8,FALSE)","v":{"$error":"#N/A"}},null,null,null,null,null,null,null,null,null,null,null,null,null,null,null,null,null,null,null,null,null,null,null,null,null,null,null,null,null,null,null,null,null,null,null,null,null,null,null,null,null,null,null,null,null,null,null,null,null,null,{"$error":"#N/A"},{"$error":"#N/A"}]
[null,{"$f":"Databáza!E37","v":0},{"$f":"VLOOKUP(B47,Materiál!B:J,2,FALSE)","v":{"$error":"#N/A"}},{"$f":"Databáza!F37","v":0},{"$f":"VLOOKUP(B47,Materiál!B:J,3,FALSE)","v":{"$error":"#N/A"}},{"$f":"VLOOKUP(B47,Materiál!B:J,5,FALSE)","v":{"$error":"#N/A"}},{"$f":"VLOOKUP(B47,Materiál!B:J,4,FALSE)","v":{"$error":"#N/A"}},null,{"$f":"VLOOKUP(B47,Materiál!B:J,9,FALSE)","v":{"$error":"#N/A"}},null,null,"-","",null,{"$f":"VLOOKUP(B47,Materiál!B:J,8,FALSE)","v":{"$error":"#N/A"}},null,null,null,null,null,null,null,null,null,null,null,null,null,null,null,null,null,null,null,null,null,null,null,null,null,null,null,null,null,null,null,null,null,null,null,null,null,null,null,null,null,null,null,null,null,null,null,null,null,null,{"$error":"#N/A"},{"$error":"#N/A"}]
[null,{"$f":"Databáza!E38","v":0},{"$f":"VLOOKUP(B48,Materiál!B:J,2,FALSE)","v":{"$error":"#N/A"}},{"$f":"Databáza!F38","v":0},{"$f":"VLOOKUP(B48,Materiál!B:J,3,FALSE)","v":{"$error":"#N/A"}},{"$f":"VLOOKUP(B48,Materiál!B:J,5,FALSE)","v":{"$error":"#N/A"}},{"$f":"VLOOKUP(B48,Materiál!B:J,4,FALSE)","v":{"$error":"#N/A"}},null,{"$f":"VLOOKUP(B48,Materiál!B:J,9,FALSE)","v":{"$error":"#N/A"}},null,null,"-","",null,{"$f":"VLOOKUP(B48,Materiál!B:J,8,FALSE)","v":{"$error":"#N/A"}},null,null,null,null,null,null,null,null,null,null,null,null,null,null,null,null,null,null,null,null,null,null,null,null,null,null,null,null,null,null,null,null,null,null,null,null,null,null,null,null,null,null,null,null,null,null,null,null,null,null,{"$error":"#N/A"},{"$error":"#N/A"}]
[null,{"$f":"Databáza!E39","v":0},{"$f":"VLOOKUP(B49,Materiál!B:J,2,FALSE)","v":{"$error":"#N/A"}},{"$f":"Databáza!F39","v":0},{"$f":"VLOOKUP(B49,Materiál!B:J,3,FALSE)","v":{"$error":"#N/A"}},{"$f":"VLOOKUP(B49,Materiál!B:J,5,FALSE)","v":{"$error":"#N/A"}},{"$f":"VLOOKUP(B49,Materiál!B:J,4,FALSE)","v":{"$error":"#N/A"}},null,{"$f":"VLOOKUP(B49,Materiál!B:J,9,FALSE)","v":{"$error":"#N/A"}},null,null,"-","",null,{"$f":"VLOOKUP(B49,Materiál!B:J,8,FALSE)","v":{"$error":"#N/A"}},null,null,null,null,null,null,null,null,null,null,null,null,null,null,null,null,null,null,null,null,null,null,null,null,null,null,null,null,null,null,null,null,null,null,null,null,null,null,null,null,null,null,null,null,null,null,null,null,null,null,{"$error":"#N/A"},{"$error":"#N/A"}]
[null,{"$f":"Databáza!E40","v":0},{"$f":"VLOOKUP(B50,Materiál!B:J,2,FALSE)","v":{"$error":"#N/A"}},{"$f":"Databáza!F40","v":0},{"$f":"VLOOKUP(B50,Materiál!B:J,3,FALSE)","v":{"$error":"#N/A"}},{"$f":"VLOOKUP(B50,Materiál!B:J,5,FALSE)","v":{"$error":"#N/A"}},{"$f":"VLOOKUP(B50,Materiál!B:J,4,FALSE)","v":{"$error":"#N/A"}},null,{"$f":"VLOOKUP(B50,Materiál!B:J,9,FALSE)","v":{"$error":"#N/A"}},null,null,"-","",null,{"$f":"VLOOKUP(B50,Materiál!B:J,8,FALSE)","v":{"$error":"#N/A"}},null,null,null,null,null,null,null,null,null,null,null,null,null,null,null,null,null,null,null,null,null,null,null,null,null,null,null,null,null,null,null,null,null,null,null,null,null,null,null,null,null,null,null,null,null,null,null,null,null,null,{"$error":"#N/A"},{"$error":"#N/A"}]
[null,{"$f":"Databáza!E41","v":0},{"$f":"VLOOKUP(B51,Materiál!B:J,2,FALSE)","v":{"$error":"#N/A"}},{"$f":"Databáza!F41","v":0},{"$f":"VLOOKUP(B51,Materiál!B:J,3,FALSE)","v":{"$error":"#N/A"}},{"$f":"VLOOKUP(B51,Materiál!B:J,5,FALSE)","v":{"$error":"#N/A"}},{"$f":"VLOOKUP(B51,Materiál!B:J,4,FALSE)","v":{"$error":"#N/A"}},null,{"$f":"VLOOKUP(B51,Materiál!B:J,9,FALSE)","v":{"$error":"#N/A"}},null,null,"-","",null,{"$f":"VLOOKUP(B51,Materiál!B:J,8,FALSE)","v":{"$error":"#N/A"}},null,null,null,null,null,null,null,null,null,null,null,null,null,null,null,null,null,null,null,null,null,null,null,null,null,null,null,null,null,null,null,null,null,null,null,null,null,null,null,null,null,null,null,null,null,null,null,null,null,null,{"$error":"#N/A"},{"$error":"#N/A"}]
[null,{"$f":"Databáza!E42","v":0},{"$f":"VLOOKUP(B52,Materiál!B:J,2,FALSE)","v":{"$error":"#N/A"}},{"$f":"Databáza!F42","v":0},{"$f":"VLOOKUP(B52,Materiál!B:J,3,FALSE)","v":{"$error":"#N/A"}},{"$f":"VLOOKUP(B52,Materiál!B:J,5,FALSE)","v":{"$error":"#N/A"}},{"$f":"VLOOKUP(B52,Materiál!B:J,4,FALSE)","v":{"$error":"#N/A"}},null,{"$f":"VLOOKUP(B52,Materiál!B:J,9,FALSE)","v":{"$error":"#N/A"}},null,null,"-","",null,{"$f":"VLOOKUP(B52,Materiál!B:J,8,FALSE)","v":{"$error":"#N/A"}},null,null,null,null,null,null,null,null,null,null,null,null,null,null,null,null,null,null,null,null,null,null,null,null,null,null,null,null,null,null,null,null,null,null,null,null,null,null,null,null,null,null,null,null,null,null,null,null,null,null,{"$error":"#N/A"},{"$error":"#N/A"}]
[null,{"$f":"Databáza!E43","v":0},{"$f":"VLOOKUP(B53,Materiál!B:J,2,FALSE)","v":{"$error":"#N/A"}},{"$f":"Databáza!F43","v":0},{"$f":"VLOOKUP(B53,Materiál!B:J,3,FALSE)","v":{"$error":"#N/A"}},{"$f":"VLOOKUP(B53,Materiál!B:J,5,FALSE)","v":{"$error":"#N/A"}},{"$f":"VLOOKUP(B53,Materiál!B:J,4,FALSE)","v":{"$error":"#N/A"}},null,{"$f":"VLOOKUP(B53,Materiál!B:J,9,FALSE)","v":{"$error":"#N/A"}},null,null,"-","",null,{"$f":"VLOOKUP(B53,Materiál!B:J,8,FALSE)","v":{"$error":"#N/A"}},null,null,null,null,null,null,null,null,null,null,null,null,null,null,null,null,null,null,null,null,null,null,null,null,null,null,null,null,null,null,null,null,null,null,null,null,null,null,null,null,null,null,null,null,null,null,null,null,null,null,{"$error":"#N/A"},{"$error":"#N/A"}]
[null,{"$f":"Databáza!E44","v":0},{"$f":"VLOOKUP(B54,Materiál!B:J,2,FALSE)","v":{"$error":"#N/A"}},{"$f":"Databáza!F44","v":0},{"$f":"VLOOKUP(B54,Materiál!B:J,3,FALSE)","v":{"$error":"#N/A"}},{"$f":"VLOOKUP(B54,Materiál!B:J,5,FALSE)","v":{"$error":"#N/A"}},{"$f":"VLOOKUP(B54,Materiál!B:J,4,FALSE)","v":{"$error":"#N/A"}},null,{"$f":"VLOOKUP(B54,Materiál!B:J,9,FALSE)","v":{"$error":"#N/A"}},null,null,"-","",null,{"$f":"VLOOKUP(B54,Materiál!B:J,8,FALSE)","v":{"$error":"#N/A"}},null,null,null,null,null,null,null,null,null,null,null,null,null,null,null,null,null,null,null,null,null,null,null,null,null,null,null,null,null,null,null,null,null,null,null,null,null,null,null,null,null,null,null,null,null,null,null,null,null,null,{"$error":"#N/A"},{"$error":"#N/A"}]
[null,{"$f":"Databáza!E45","v":0},{"$f":"VLOOKUP(B55,Materiál!B:J,2,FALSE)","v":{"$error":"#N/A"}},{"$f":"Databáza!F45","v":0},{"$f":"VLOOKUP(B55,Materiál!B:J,3,FALSE)","v":{"$error":"#N/A"}},{"$f":"VLOOKUP(B55,Materiál!B:J,5,FALSE)","v":{"$error":"#N/A"}},{"$f":"VLOOKUP(B55,Materiál!B:J,4,FALSE)","v":{"$error":"#N/A"}},null,{"$f":"VLOOKUP(B55,Materiál!B:J,9,FALSE)","v":{"$error":"#N/A"}},null,null,"-","",null,{"$f":"VLOOKUP(B55,Materiál!B:J,8,FALSE)","v":{"$error":"#N/A"}},null,null,null,null,null,null,null,null,null,null,null,null,null,null,null,null,null,null,null,null,null,null,null,null,null,null,null,null,null,null,null,null,null,null,null,null,null,null,null,null,null,null,null,null,null,null,null,null,null,null,{"$error":"#N/A"},{"$error":"#N/A"}]
[null,{"$f":"Databáza!E46","v":0},{"$f":"VLOOKUP(B56,Materiál!B:J,2,FALSE)","v":{"$error":"#N/A"}},{"$f":"Databáza!F46","v":0},{"$f":"VLOOKUP(B56,Materiál!B:J,3,FALSE)","v":{"$error":"#N/A"}},{"$f":"VLOOKUP(B56,Materiál!B:J,5,FALSE)","v":{"$error":"#N/A"}},{"$f":"VLOOKUP(B56,Materiál!B:J,4,FALSE)","v":{"$error":"#N/A"}},null,{"$f":"VLOOKUP(B56,Materiál!B:J,9,FALSE)","v":{"$error":"#N/A"}},null,null,"-","",null,{"$f":"VLOOKUP(B56,Materiál!B:J,8,FALSE)","v":{"$error":"#N/A"}},null,null,null,null,null,null,null,null,null,null,null,null,null,null,null,null,null,null,null,null,null,null,null,null,null,null,null,null,null,null,null,null,null,null,null,null,null,null,null,null,null,null,null,null,null,null,null,null,null,null,{"$error":"#N/A"},{"$error":"#N/A"}]
[null,{"$f":"Databáza!E47","v":0},{"$f":"VLOOKUP(B57,Materiál!B:J,2,FALSE)","v":{"$error":"#N/A"}},{"$f":"Databáza!F47","v":0},{"$f":"VLOOKUP(B57,Materiál!B:J,3,FALSE)","v":{"$error":"#N/A"}},{"$f":"VLOOKUP(B57,Materiál!B:J,5,FALSE)","v":{"$error":"#N/A"}},{"$f":"VLOOKUP(B57,Materiál!B:J,4,FALSE)","v":{"$error":"#N/A"}},null,{"$f":"VLOOKUP(B57,Materiál!B:J,9,FALSE)","v":{"$error":"#N/A"}},null,null,"-","",null,{"$f":"VLOOKUP(B57,Materiál!B:J,8,FALSE)","v":{"$error":"#N/A"}},null,null,null,null,null,null,null,null,null,null,null,null,null,null,null,null,null,null,null,null,null,null,null,null,null,null,null,null,null,null,null,null,null,null,null,null,null,null,null,null,null,null,null,null,null,null,null,null,null,null,{"$error":"#N/A"},{"$error":"#N/A"}]
[null,{"$f":"Databáza!E48","v":0},{"$f":"VLOOKUP(B58,Materiál!B:J,2,FALSE)","v":{"$error":"#N/A"}},{"$f":"Databáza!F48","v":0},{"$f":"VLOOKUP(B58,Materiál!B:J,3,FALSE)","v":{"$error":"#N/A"}},{"$f":"VLOOKUP(B58,Materiál!B:J,5,FALSE)","v":{"$error":"#N/A"}},{"$f":"VLOOKUP(B58,Materiál!B:J,4,FALSE)","v":{"$error":"#N/A"}},null,{"$f":"VLOOKUP(B58,Materiál!B:J,9,FALSE)","v":{"$error":"#N/A"}},null,null,"-","",null,{"$f":"VLOOKUP(B58,Materiál!B:J,8,FALSE)","v":{"$error":"#N/A"}},null,null,null,null,null,null,null,null,null,null,null,null,null,null,null,null,null,null,null,null,null,null,null,null,null,null,null,null,null,null,null,null,null,null,null,null,null,null,null,null,null,null,null,null,null,null,null,null,null,null,{"$error":"#N/A"},{"$error":"#N/A"}]
[null,{"$f":"Databáza!E49","v":0},{"$f":"VLOOKUP(B59,Materiál!B:J,2,FALSE)","v":{"$error":"#N/A"}},{"$f":"Databáza!F49","v":0},{"$f":"VLOOKUP(B59,Materiál!B:J,3,FALSE)","v":{"$error":"#N/A"}},{"$f":"VLOOKUP(B59,Materiál!B:J,5,FALSE)","v":{"$error":"#N/A"}},{"$f":"VLOOKUP(B59,Materiál!B:J,4,FALSE)","v":{"$error":"#N/A"}},null,{"$f":"VLOOKUP(B59,Materiál!B:J,9,FALSE)","v":{"$error":"#N/A"}},null,null,"-","",null,{"$f":"VLOOKUP(B59,Materiál!B:J,8,FALSE)","v":{"$error":"#N/A"}},null,null,null,null,null,null,null,null,null,null,null,null,null,null,null,null,null,null,null,null,null,null,null,null,null,null,null,null,null,null,null,null,null,null,null,null,null,null,null,null,null,null,null,null,null,null,null,null,null,null,{"$error":"#N/A"},{"$error":"#N/A"}]
[null,{"$f":"Databáza!E50","v":0},{"$f":"VLOOKUP(B60,Materiál!B:J,2,FALSE)","v":{"$error":"#N/A"}},{"$f":"Databáza!F50","v":0},{"$f":"VLOOKUP(B60,Materiál!B:J,3,FALSE)","v":{"$error":"#N/A"}},{"$f":"VLOOKUP(B60,Materiál!B:J,5,FALSE)","v":{"$error":"#N/A"}},{"$f":"VLOOKUP(B60,Materiál!B:J,4,FALSE)","v":{"$error":"#N/A"}},null,{"$f":"VLOOKUP(B60,Materiál!B:J,9,FALSE)","v":{"$error":"#N/A"}},null,null,"-","",null,{"$f":"VLOOKUP(B60,Materiál!B:J,8,FALSE)","v":{"$error":"#N/A"}},null,null,null,null,null,null,null,null,null,null,null,null,null,null,null,null,null,null,null,null,null,null,null,null,null,null,null,null,null,null,null,null,null,null,null,null,null,null,null,null,null,null,null,null,null,null,null,null,null,null,{"$error":"#N/A"},{"$error":"#N/A"}]
[null,{"$f":"Databáza!E51","v":0},{"$f":"VLOOKUP(B61,Materiál!B:J,2,FALSE)","v":{"$error":"#N/A"}},{"$f":"Databáza!F51","v":0},{"$f":"VLOOKUP(B61,Materiál!B:J,3,FALSE)","v":{"$error":"#N/A"}},{"$f":"VLOOKUP(B61,Materiál!B:J,5,FALSE)","v":{"$error":"#N/A"}},{"$f":"VLOOKUP(B61,Materiál!B:J,4,FALSE)","v":{"$error":"#N/A"}},null,{"$f":"VLOOKUP(B61,Materiál!B:J,9,FALSE)","v":{"$error":"#N/A"}},null,null,"-","",null,{"$f":"VLOOKUP(B61,Materiál!B:J,8,FALSE)","v":{"$error":"#N/A"}},null,null,null,null,null,null,null,null,null,null,null,null,null,null,null,null,null,null,null,null,null,null,null,null,null,null,null,null,null,null,null,null,null,null,null,null,null,null,null,null,null,null,null,null,null,null,null,null,null,null,{"$error":"#N/A"},{"$error":"#N/A"}]
[null,{"$f":"Databáza!E52","v":0},{"$f":"VLOOKUP(B62,Materiál!B:J,2,FALSE)","v":{"$error":"#N/A"}},{"$f":"Databáza!F52","v":0},{"$f":"VLOOKUP(B62,Materiál!B:J,3,FALSE)","v":{"$error":"#N/A"}},{"$f":"VLOOKUP(B62,Materiál!B:J,5,FALSE)","v":{"$error":"#N/A"}},{"$f":"VLOOKUP(B62,Materiál!B:J,4,FALSE)","v":{"$error":"#N/A"}},null,{"$f":"VLOOKUP(B62,Materiál!B:J,9,FALSE)","v":{"$error":"#N/A"}},null,null,"-","",null,{"$f":"VLOOKUP(B62,Materiál!B:J,8,FALSE)","v":{"$error":"#N/A"}},null,null,null,null,null,null,null,null,null,null,null,null,null,null,null,null,null,null,null,null,null,null,null,null,null,null,null,null,null,null,null,null,null,null,null,null,null,null,null,null,null,null,null,null,null,null,null,null,null,null,{"$error":"#N/A"},{"$error":"#N/A"}]
[null,{"$f":"Databáza!E53","v":0},{"$f":"VLOOKUP(B63,Materiál!B:J,2,FALSE)","v":{"$error":"#N/A"}},{"$f":"Databáza!F53","v":0},{"$f":"VLOOKUP(B63,Materiál!B:J,3,FALSE)","v":{"$error":"#N/A"}},{"$f":"VLOOKUP(B63,Materiál!B:J,5,FALSE)","v":{"$error":"#N/A"}},{"$f":"VLOOKUP(B63,Materiál!B:J,4,FALSE)","v":{"$error":"#N/A"}},null,{"$f":"VLOOKUP(B63,Materiál!B:J,9,FALSE)","v":{"$error":"#N/A"}},null,null,"-","",null,{"$f":"VLOOKUP(B63,Materiál!B:J,8,FALSE)","v":{"$error":"#N/A"}},null,null,null,null,null,null,null,null,null,null,null,null,null,null,null,null,null,null,null,null,null,null,null,null,null,null,null,null,null,null,null,null,null,null,null,null,null,null,null,null,null,null,null,null,null,null,null,null,null,null,{"$error":"#N/A"},{"$error":"#N/A"}]
[null,{"$f":"Databáza!E54","v":0},{"$f":"VLOOKUP(B64,Materiál!B:J,2,FALSE)","v":{"$error":"#N/A"}},{"$f":"Databáza!F54","v":0},{"$f":"VLOOKUP(B64,Materiál!B:J,3,FALSE)","v":{"$error":"#N/A"}},{"$f":"VLOOKUP(B64,Materiál!B:J,5,FALSE)","v":{"$error":"#N/A"}},{"$f":"VLOOKUP(B64,Materiál!B:J,4,FALSE)","v":{"$error":"#N/A"}},null,{"$f":"VLOOKUP(B64,Materiál!B:J,9,FALSE)","v":{"$error":"#N/A"}},null,null,"-","",null,{"$f":"VLOOKUP(B64,Materiál!B:J,8,FALSE)","v":{"$error":"#N/A"}},null,null,null,null,null,null,null,null,null,null,null,null,null,null,null,null,null,null,null,null,null,null,null,null,null,null,null,null,null,null,null,null,null,null,null,null,null,null,null,null,null,null,null,null,null,null,null,null,null,null,{"$error":"#N/A"},{"$error":"#N/A"}]
[null,{"$f":"Databáza!E55","v":0},{"$f":"VLOOKUP(B65,Materiál!B:J,2,FALSE)","v":{"$error":"#N/A"}},{"$f":"Databáza!F55","v":0},{"$f":"VLOOKUP(B65,Materiál!B:J,3,FALSE)","v":{"$error":"#N/A"}},{"$f":"VLOOKUP(B65,Materiál!B:J,5,FALSE)","v":{"$error":"#N/A"}},{"$f":"VLOOKUP(B65,Materiál!B:J,4,FALSE)","v":{"$error":"#N/A"}},null,{"$f":"VLOOKUP(B65,Materiál!B:J,9,FALSE)","v":{"$error":"#N/A"}},null,null,"-","",null,{"$f":"VLOOKUP(B65,Materiál!B:J,8,FALSE)","v":{"$error":"#N/A"}},null,null,null,null,null,null,null,null,null,null,null,null,null,null,null,null,null,null,null,null,null,null,null,null,null,null,null,null,null,null,null,null,null,null,null,null,null,null,null,null,null,null,null,null,null,null,null,null,null,null,{"$error":"#N/A"},{"$error":"#N/A"}]
[null,{"$f":"Databáza!E56","v":0},{"$f":"VLOOKUP(B66,Materiál!B:J,2,FALSE)","v":{"$error":"#N/A"}},{"$f":"Databáza!F56","v":0},{"$f":"VLOOKUP(B66,Materiál!B:J,3,FALSE)","v":{"$error":"#N/A"}},{"$f":"VLOOKUP(B66,Materiál!B:J,5,FALSE)","v":{"$error":"#N/A"}},{"$f":"VLOOKUP(B66,Materiál!B:J,4,FALSE)","v":{"$error":"#N/A"}},null,{"$f":"VLOOKUP(B66,Materiál!B:J,9,FALSE)","v":{"$error":"#N/A"}},null,null,"-","",null,{"$f":"VLOOKUP(B66,Materiál!B:J,8,FALSE)","v":{"$error":"#N/A"}},null,null,null,null,null,null,null,null,null,null,null,null,null,null,null,null,null,null,null,null,null,null,null,null,null,null,null,null,null,null,null,null,null,null,null,null,null,null,null,null,null,null,null,null,null,null,null,null,null,null,{"$error":"#N/A"},{"$error":"#N/A"}]
[null,{"$f":"Databáza!E57","v":0},{"$f":"VLOOKUP(B67,Materiál!B:J,2,FALSE)","v":{"$error":"#N/A"}},{"$f":"Databáza!F57","v":0},{"$f":"VLOOKUP(B67,Materiál!B:J,3,FALSE)","v":{"$error":"#N/A"}},{"$f":"VLOOKUP(B67,Materiál!B:J,5,FALSE)","v":{"$error":"#N/A"}},{"$f":"VLOOKUP(B67,Materiál!B:J,4,FALSE)","v":{"$error":"#N/A"}},null,{"$f":"VLOOKUP(B67,Materiál!B:J,9,FALSE)","v":{"$error":"#N/A"}},null,null,"-","",null,{"$f":"VLOOKUP(B67,Materiál!B:J,8,FALSE)","v":{"$error":"#N/A"}},null,null,null,null,null,null,null,null,null,null,null,null,null,null,null,null,null,null,null,null,null,null,null,null,null,null,null,null,null,null,null,null,null,null,null,null,null,null,null,null,null,null,null,null,null,null,null,null,null,null,{"$error":"#N/A"},{"$error":"#N/A"}]
[null,{"$f":"Databáza!E58","v":0},{"$f":"VLOOKUP(B68,Materiál!B:J,2,FALSE)","v":{"$error":"#N/A"}},{"$f":"Databáza!F58","v":0},{"$f":"VLOOKUP(B68,Materiál!B:J,3,FALSE)","v":{"$error":"#N/A"}},{"$f":"VLOOKUP(B68,Materiál!B:J,5,FALSE)","v":{"$error":"#N/A"}},{"$f":"VLOOKUP(B68,Materiál!B:J,4,FALSE)","v":{"$error":"#N/A"}},null,{"$f":"VLOOKUP(B68,Materiál!B:J,9,FALSE)","v":{"$error":"#N/A"}},null,null,"-","",null,{"$f":"VLOOKUP(B68,Materiál!B:J,8,FALSE)","v":{"$error":"#N/A"}},null,null,null,null,null,null,null,null,null,null,null,null,null,null,null,null,null,null,null,null,null,null,null,null,null,null,null,null,null,null,null,null,null,null,null,null,null,null,null,null,null,null,null,null,null,null,null,null,null,null,{"$error":"#N/A"},{"$error":"#N/A"}]
[null,{"$f":"Databáza!E59","v":0},{"$f":"VLOOKUP(B69,Materiál!B:J,2,FALSE)","v":{"$error":"#N/A"}},{"$f":"Databáza!F59","v":0},{"$f":"VLOOKUP(B69,Materiál!B:J,3,FALSE)","v":{"$error":"#N/A"}},{"$f":"VLOOKUP(B69,Materiál!B:J,5,FALSE)","v":{"$error":"#N/A"}},{"$f":"VLOOKUP(B69,Materiál!B:J,4,FALSE)","v":{"$error":"#N/A"}},null,{"$f":"VLOOKUP(B69,Materiál!B:J,9,FALSE)","v":{"$error":"#N/A"}},null,null,"-","",null,{"$f":"VLOOKUP(B69,Materiál!B:J,8,FALSE)","v":{"$error":"#N/A"}},null,null,null,null,null,null,null,null,null,null,null,null,null,null,null,null,null,null,null,null,null,null,null,null,null,null,null,null,null,null,null,null,null,null,null,null,null,null,null,null,null,null,null,null,null,null,null,null,null,null,{"$error":"#N/A"},{"$error":"#N/A"}]
[null,{"$f":"Databáza!E60","v":0},{"$f":"VLOOKUP(B70,Materiál!B:J,2,FALSE)","v":{"$error":"#N/A"}},{"$f":"Databáza!F60","v":0},{"$f":"VLOOKUP(B70,Materiál!B:J,3,FALSE)","v":{"$error":"#N/A"}},{"$f":"VLOOKUP(B70,Materiál!B:J,5,FALSE)","v":{"$error":"#N/A"}},{"$f":"VLOOKUP(B70,Materiál!B:J,4,FALSE)","v":{"$error":"#N/A"}},null,{"$f":"VLOOKUP(B70,Materiál!B:J,9,FALSE)","v":{"$error":"#N/A"}},null,null,"-","",null,{"$f":"VLOOKUP(B70,Materiál!B:J,8,FALSE)","v":{"$error":"#N/A"}},null,null,null,null,null,null,null,null,null,null,null,null,null,null,null,null,null,null,null,null,null,null,null,null,null,null,null,null,null,null,null,null,null,null,null,null,null,null,null,null,null,null,null,null,null,null,null,null,null,null,{"$error":"#N/A"},{"$error":"#N/A"}]
[null,{"$f":"Databáza!E61","v":0},{"$f":"VLOOKUP(B71,Materiál!B:J,2,FALSE)","v":{"$error":"#N/A"}},{"$f":"Databáza!F61","v":0},{"$f":"VLOOKUP(B71,Materiál!B:J,3,FALSE)","v":{"$error":"#N/A"}},{"$f":"VLOOKUP(B71,Materiál!B:J,5,FALSE)","v":{"$error":"#N/A"}},{"$f":"VLOOKUP(B71,Materiál!B:J,4,FALSE)","v":{"$error":"#N/A"}},null,{"$f":"VLOOKUP(B71,Materiál!B:J,9,FALSE)","v":{"$error":"#N/A"}},null,null,"-","",null,{"$f":"VLOOKUP(B71,Materiál!B:J,8,FALSE)","v":{"$error":"#N/A"}},null,null,null,null,null,null,null,null,null,null,null,null,null,null,null,null,null,null,null,null,null,null,null,null,null,null,null,null,null,null,null,null,null,null,null,null,null,null,null,null,null,null,null,null,null,null,null,null,null,null,{"$f":"IF(G71=\"\",\"-\",(E71-((E71/100)*G71)))","v":{"$error":"#N/A"}},{"$f":"IF(G71=\"\",\"-\",(E71+((E71/100)*G71)))","v":{"$error":"#N/A"}}]
[null,{"$f":"Databáza!E62","v":0},{"$f":"VLOOKUP(B72,Materiál!B:J,2,FALSE)","v":{"$error":"#N/A"}},{"$f":"Databáza!F62","v":0},{"$f":"VLOOKUP(B72,Materiál!B:J,3,FALSE)","v":{"$error":"#N/A"}},{"$f":"VLOOKUP(B72,Materiál!B:J,5,FALSE)","v":{"$error":"#N/A"}},{"$f":"VLOOKUP(B72,Materiál!B:J,4,FALSE)","v":{"$error":"#N/A"}},null,{"$f":"VLOOKUP(B72,Materiál!B:J,9,FALSE)","v":{"$error":"#N/A"}},null,null,"-","",null,{"$f":"VLOOKUP(B72,Materiál!B:J,8,FALSE)","v":{"$error":"#N/A"}},null,null,null,null,null,null,null,null,null,null,null,null,null,null,null,null,null,null,null,null,null,null,null,null,null,null,null,null,null,null,null,null,null,null,null,null,null,null,null,null,null,null,null,null,null,null,null,null,null,null,{"$error":"#N/A"},{"$error":"#N/A"}]
[null,{"$f":"Databáza!E63","v":0},{"$f":"VLOOKUP(B73,Materiál!B:J,2,FALSE)","v":{"$error":"#N/A"}},{"$f":"Databáza!F63","v":0},{"$f":"VLOOKUP(B73,Materiál!B:J,3,FALSE)","v":{"$error":"#N/A"}},{"$f":"VLOOKUP(B73,Materiál!B:J,5,FALSE)","v":{"$error":"#N/A"}},{"$f":"VLOOKUP(B73,Materiál!B:J,4,FALSE)","v":{"$error":"#N/A"}},null,{"$f":"VLOOKUP(B73,Materiál!B:J,9,FALSE)","v":{"$error":"#N/A"}},null,null,"-","",null,{"$f":"VLOOKUP(B73,Materiál!B:J,8,FALSE)","v":{"$error":"#N/A"}},null,null,null,null,null,null,null,null,null,null,null,null,null,null,null,null,null,null,null,null,null,null,null,null,null,null,null,null,null,null,null,null,null,null,null,null,null,null,null,null,null,null,null,null,null,null,null,null,null,null,{"$error":"#N/A"},{"$error":"#N/A"}]
[null,{"$f":"Databáza!E64","v":0},{"$f":"VLOOKUP(B74,Materiál!B:J,2,FALSE)","v":{"$error":"#N/A"}},{"$f":"Databáza!F64","v":0},{"$f":"VLOOKUP(B74,Materiál!B:J,3,FALSE)","v":{"$error":"#N/A"}},{"$f":"VLOOKUP(B74,Materiál!B:J,5,FALSE)","v":{"$error":"#N/A"}},{"$f":"VLOOKUP(B74,Materiál!B:J,4,FALSE)","v":{"$error":"#N/A"}},null,{"$f":"VLOOKUP(B74,Materiál!B:J,9,FALSE)","v":{"$error":"#N/A"}},null,null,"-","",null,{"$f":"VLOOKUP(B74,Materiál!B:J,8,FALSE)","v":{"$error":"#N/A"}},null,null,null,null,null,null,null,null,null,null,null,null,null,null,null,null,null,null,null,null,null,null,null,null,null,null,null,null,null,null,null,null,null,null,null,null,null,null,null,null,null,null,null,null,null,null,null,null,null,null,{"$error":"#N/A"},{"$error":"#N/A"}]
[null,{"$f":"Databáza!E65","v":0},{"$f":"VLOOKUP(B75,Materiál!B:J,2,FALSE)","v":{"$error":"#N/A"}},{"$f":"Databáza!F65","v":0},{"$f":"VLOOKUP(B75,Materiál!B:J,3,FALSE)","v":{"$error":"#N/A"}},{"$f":"VLOOKUP(B75,Materiál!B:J,5,FALSE)","v":{"$error":"#N/A"}},{"$f":"VLOOKUP(B75,Materiál!B:J,4,FALSE)","v":{"$error":"#N/A"}},null,{"$f":"VLOOKUP(B75,Materiál!B:J,9,FALSE)","v":{"$error":"#N/A"}},null,null,"-","",null,{"$f":"VLOOKUP(B75,Materiál!B:J,8,FALSE)","v":{"$error":"#N/A"}},null,null,null,null,null,null,null,null,null,null,null,null,null,null,null,null,null,null,null,null,null,null,null,null,null,null,null,null,null,null,null,null,null,null,null,null,null,null,null,null,null,null,null,null,null,null,null,null,null,null,{"$error":"#N/A"},{"$error":"#N/A"}]
[null,{"$f":"Databáza!E66","v":0},{"$f":"VLOOKUP(B76,Materiál!B:J,2,FALSE)","v":{"$error":"#N/A"}},{"$f":"Databáza!F66","v":0},{"$f":"VLOOKUP(B76,Materiál!B:J,3,FALSE)","v":{"$error":"#N/A"}},{"$f":"VLOOKUP(B76,Materiál!B:J,5,FALSE)","v":{"$error":"#N/A"}},{"$f":"VLOOKUP(B76,Materiál!B:J,4,FALSE)","v":{"$error":"#N/A"}},null,{"$f":"VLOOKUP(B76,Materiál!B:J,9,FALSE)","v":{"$error":"#N/A"}},null,null,"-","",null,{"$f":"VLOOKUP(B76,Materiál!B:J,8,FALSE)","v":{"$error":"#N/A"}},null,null,null,null,null,null,null,null,null,null,null,null,null,null,null,null,null,null,null,null,null,null,null,null,null,null,null,null,null,null,null,null,null,null,null,null,null,null,null,null,null,null,null,null,null,null,null,null,null,null,{"$error":"#N/A"},{"$error":"#N/A"}]
[null,{"$f":"Databáza!E67","v":0},{"$f":"VLOOKUP(B77,Materiál!B:J,2,FALSE)","v":{"$error":"#N/A"}},{"$f":"Databáza!F67","v":0},{"$f":"VLOOKUP(B77,Materiál!B:J,3,FALSE)","v":{"$error":"#N/A"}},{"$f":"VLOOKUP(B77,Materiál!B:J,5,FALSE)","v":{"$error":"#N/A"}},{"$f":"VLOOKUP(B77,Materiál!B:J,4,FALSE)","v":{"$error":"#N/A"}},null,{"$f":"VLOOKUP(B77,Materiál!B:J,9,FALSE)","v":{"$error":"#N/A"}},null,null,"-","",null,{"$f":"VLOOKUP(B77,Materiál!B:J,8,FALSE)","v":{"$error":"#N/A"}},null,null,null,null,null,null,null,null,null,null,null,null,null,null,null,null,null,null,null,null,null,null,null,null,null,null,null,null,null,null,null,null,null,null,null,null,null,null,null,null,null,null,null,null,null,null,null,null,null,null,{"$error":"#N/A"},{"$error":"#N/A"}]
[null,{"$f":"Databáza!E68","v":0},{"$f":"VLOOKUP(B78,Materiál!B:J,2,FALSE)","v":{"$error":"#N/A"}},{"$f":"Databáza!F68","v":0},{"$f":"VLOOKUP(B78,Materiál!B:J,3,FALSE)","v":{"$error":"#N/A"}},{"$f":"VLOOKUP(B78,Materiál!B:J,5,FALSE)","v":{"$error":"#N/A"}},{"$f":"VLOOKUP(B78,Materiál!B:J,4,FALSE)","v":{"$error":"#N/A"}},null,{"$f":"VLOOKUP(B78,Materiál!B:J,9,FALSE)","v":{"$error":"#N/A"}},null,null,{"$f":"IF(K78=1,\"UVOĽNENÉ\",IF(K78=2,\"UPOZORNENIE\",IF(K78=3,\"UPOZOR. / NÁKL.\",IF(K78=4,\"REKLAMÁCIA\",\"-\"))))","v":"-"},{"$f":"IF(H78=(\"\"),\"\",\"Brišová\")","v":""},null,{"$f":"VLOOKUP(B78,Materiál!B:J,8,FALSE)","v":{"$error":"#N/A"}},null,null,null,null,null,null,null,null,null,null,null,null,null,null,null,null,null,null,null,null,null,null,null,null,null,null,null,null,null,null,null,null,null,null,null,null,null,null,null,null,null,null,null,null,null,null,null,null,null,null,{"$error":"#N/A"},{"$error":"#N/A"}]
[null,{"$f":"Databáza!E69","v":0},{"$f":"VLOOKUP(B79,Materiál!B:J,2,FALSE)","v":{"$error":"#N/A"}},{"$f":"Databáza!F69","v":0},{"$f":"VLOOKUP(B79,Materiál!B:J,3,FALSE)","v":{"$error":"#N/A"}},{"$f":"VLOOKUP(B79,Materiál!B:J,5,FALSE)","v":{"$error":"#N/A"}},{"$f":"VLOOKUP(B79,Materiál!B:J,4,FALSE)","v":{"$error":"#N/A"}},null,{"$f":"VLOOKUP(B79,Materiál!B:J,9,FALSE)","v":{"$error":"#N/A"}},null,null,"-","",null,{"$f":"VLOOKUP(B79,Materiál!B:J,8,FALSE)","v":{"$error":"#N/A"}},null,null,null,null,null,null,null,null,null,null,null,null,null,null,null,null,null,null,null,null,null,null,null,null,null,null,null,null,null,null,null,null,null,null,null,null,null,null,null,null,null,null,null,null,null,null,null,null,null,null,{"$error":"#N/A"},{"$error":"#N/A"}]
[null,{"$f":"Databáza!E70","v":0},{"$f":"VLOOKUP(B80,Materiál!B:J,2,FALSE)","v":{"$error":"#N/A"}},{"$f":"Databáza!F70","v":0},{"$f":"VLOOKUP(B80,Materiál!B:J,3,FALSE)","v":{"$error":"#N/A"}},{"$f":"VLOOKUP(B80,Materiál!B:J,5,FALSE)","v":{"$error":"#N/A"}},{"$f":"VLOOKUP(B80,Materiál!B:J,4,FALSE)","v":{"$error":"#N/A"}},null,{"$f":"VLOOKUP(B80,Materiál!B:J,9,FALSE)","v":{"$error":"#N/A"}},null,null,"-","",null,{"$f":"VLOOKUP(B80,Materiál!B:J,8,FALSE)","v":{"$error":"#N/A"}},null,null,null,null,null,null,null,null,null,null,null,null,null,null,null,null,null,null,null,null,null,null,null,null,null,null,null,null,null,null,null,null,null,null,null,null,null,null,null,null,null,null,null,null,null,null,null,null,null,null,{"$error":"#N/A"},{"$error":"#N/A"}]
[null,{"$f":"Databáza!E71","v":0},{"$f":"VLOOKUP(B81,Materiál!B:J,2,FALSE)","v":{"$error":"#N/A"}},{"$f":"Databáza!F71","v":0},{"$f":"VLOOKUP(B81,Materiál!B:J,3,FALSE)","v":{"$error":"#N/A"}},{"$f":"VLOOKUP(B81,Materiál!B:J,5,FALSE)","v":{"$error":"#N/A"}},{"$f":"VLOOKUP(B81,Materiál!B:J,4,FALSE)","v":{"$error":"#N/A"}},null,{"$f":"VLOOKUP(B81,Materiál!B:J,9,FALSE)","v":{"$error":"#N/A"}},null,null,"-","",null,{"$f":"VLOOKUP(B81,Materiál!B:J,8,FALSE)","v":{"$error":"#N/A"}},null,null,null,null,null,null,null,null,null,null,null,null,null,null,null,null,null,null,null,null,null,null,null,null,null,null,null,null,null,null,null,null,null,null,null,null,null,null,null,null,null,null,null,null,null,null,null,null,null,null,{"$error":"#N/A"},{"$error":"#N/A"}]
[null,{"$f":"Databáza!E72","v":0},{"$f":"VLOOKUP(B82,Materiál!B:J,2,FALSE)","v":{"$error":"#N/A"}},{"$f":"Databáza!F72","v":0},{"$f":"VLOOKUP(B82,Materiál!B:J,3,FALSE)","v":{"$error":"#N/A"}},{"$f":"VLOOKUP(B82,Materiál!B:J,5,FALSE)","v":{"$error":"#N/A"}},{"$f":"VLOOKUP(B82,Materiál!B:J,4,FALSE)","v":{"$error":"#N/A"}},null,{"$f":"VLOOKUP(B82,Materiál!B:J,9,FALSE)","v":{"$error":"#N/A"}},null,null,"-","",null,{"$f":"VLOOKUP(B82,Materiál!B:J,8,FALSE)","v":{"$error":"#N/A"}},null,null,null,null,null,null,null,null,null,null,null,null,null,null,null,null,null,null,null,null,null,null,null,null,null,null,null,null,null,null,null,null,null,null,null,null,null,null,null,null,null,null,null,null,null,null,null,null,null,null,{"$error":"#N/A"},{"$error":"#N/A"}]
[null,{"$f":"Databáza!E73","v":0},{"$f":"VLOOKUP(B83,Materiál!B:J,2,FALSE)","v":{"$error":"#N/A"}},{"$f":"Databáza!F73","v":0},{"$f":"VLOOKUP(B83,Materiál!B:J,3,FALSE)","v":{"$error":"#N/A"}},{"$f":"VLOOKUP(B83,Materiál!B:J,5,FALSE)","v":{"$error":"#N/A"}},{"$f":"VLOOKUP(B83,Materiál!B:J,4,FALSE)","v":{"$error":"#N/A"}},null,{"$f":"VLOOKUP(B83,Materiál!B:J,9,FALSE)","v":{"$error":"#N/A"}},null,null,"-","",null,{"$f":"VLOOKUP(B83,Materiál!B:J,8,FALSE)","v":{"$error":"#N/A"}},null,null,null,null,null,null,null,null,null,null,null,null,null,null,null,null,null,null,null,null,null,null,null,null,null,null,null,null,null,null,null,null,null,null,null,null,null,null,null,null,null,null,null,null,null,null,null,null,null,null,{"$error":"#N/A"},{"$error":"#N/A"}]
[null,{"$f":"Databáza!E74","v":0},{"$f":"VLOOKUP(B84,Materiál!B:J,2,FALSE)","v":{"$error":"#N/A"}},{"$f":"Databáza!F74","v":0},{"$f":"VLOOKUP(B84,Materiál!B:J,3,FALSE)","v":{"$error":"#N/A"}},{"$f":"VLOOKUP(B84,Materiál!B:J,5,FALSE)","v":{"$error":"#N/A"}},{"$f":"VLOOKUP(B84,Materiál!B:J,4,FALSE)","v":{"$error":"#N/A"}},null,{"$f":"VLOOKUP(B84,Materiál!B:J,9,FALSE)","v":{"$error":"#N/A"}},null,null,"-","",null,{"$f":"VLOOKUP(B84,Materiál!B:J,8,FALSE)","v":{"$error":"#N/A"}},null,null,null,null,null,null,null,null,null,null,null,null,null,null,null,null,null,null,null,null,null,null,null,null,null,null,null,null,null,null,null,null,null,null,null,null,null,null,null,null,null,null,null,null,null,null,null,null,null,null,{"$error":"#N/A"},{"$error":"#N/A"}]
[null,{"$f":"Databáza!E75","v":0},{"$f":"VLOOKUP(B85,Materiál!B:J,2,FALSE)","v":{"$error":"#N/A"}},{"$f":"Databáza!F75","v":0},{"$f":"VLOOKUP(B85,Materiál!B:J,3,FALSE)","v":{"$error":"#N/A"}},{"$f":"VLOOKUP(B85,Materiál!B:J,5,FALSE)","v":{"$error":"#N/A"}},{"$f":"VLOOKUP(B85,Materiál!B:J,4,FALSE)","v":{"$error":"#N/A"}},null,{"$f":"VLOOKUP(B85,Materiál!B:J,9,FALSE)","v":{"$error":"#N/A"}},null,null,"-","",null,{"$f":"VLOOKUP(B85,Materiál!B:J,8,FALSE)","v":{"$error":"#N/A"}},null,null,null,null,null,null,null,null,null,null,null,null,null,null,null,null,null,null,null,null,null,null,null,null,null,null,null,null,null,null,null,null,null,null,null,null,null,null,null,null,null,null,null,null,null,null,null,null,null,null,{"$error":"#N/A"},{"$error":"#N/A"}]
[null,{"$f":"Databáza!E76","v":0},{"$f":"VLOOKUP(B86,Materiál!B:J,2,FALSE)","v":{"$error":"#N/A"}},{"$f":"Databáza!F76","v":0},{"$f":"VLOOKUP(B86,Materiál!B:J,3,FALSE)","v":{"$error":"#N/A"}},{"$f":"VLOOKUP(B86,Materiál!B:J,5,FALSE)","v":{"$error":"#N/A"}},{"$f":"VLOOKUP(B86,Materiál!B:J,4,FALSE)","v":{"$error":"#N/A"}},null,{"$f":"VLOOKUP(B86,Materiál!B:J,9,FALSE)","v":{"$error":"#N/A"}},null,null,"-","",null,{"$f":"VLOOKUP(B86,Materiál!B:J,8,FALSE)","v":{"$error":"#N/A"}},null,null,null,null,null,null,null,null,null,null,null,null,null,null,null,null,null,null,null,null,null,null,null,null,null,null,null,null,null,null,null,null,null,null,null,null,null,null,null,null,null,null,null,null,null,null,null,null,null,null,{"$error":"#N/A"},{"$error":"#N/A"}]
[null,{"$f":"Databáza!E77","v":0},{"$f":"VLOOKUP(B87,Materiál!B:J,2,FALSE)","v":{"$error":"#N/A"}},{"$f":"Databáza!F77","v":0},{"$f":"VLOOKUP(B87,Materiál!B:J,3,FALSE)","v":{"$error":"#N/A"}},{"$f":"VLOOKUP(B87,Materiál!B:J,5,FALSE)","v":{"$error":"#N/A"}},{"$f":"VLOOKUP(B87,Materiál!B:J,4,FALSE)","v":{"$error":"#N/A"}},null,{"$f":"VLOOKUP(B87,Materiál!B:J,9,FALSE)","v":{"$error":"#N/A"}},null,null,"-","",null,{"$f":"VLOOKUP(B87,Materiál!B:J,8,FALSE)","v":{"$error":"#N/A"}},null,null,null,null,null,null,null,null,null,null,null,null,null,null,null,null,null,null,null,null,null,null,null,null,null,null,null,null,null,null,null,null,null,null,null,null,null,null,null,null,null,null,null,null,null,null,null,null,null,null,{"$error":"#N/A"},{"$error":"#N/A"}]
[null,{"$f":"Databáza!E78","v":0},{"$f":"VLOOKUP(B88,Materiál!B:J,2,FALSE)","v":{"$error":"#N/A"}},{"$f":"Databáza!F78","v":0},{"$f":"VLOOKUP(B88,Materiál!B:J,3,FALSE)","v":{"$error":"#N/A"}},{"$f":"VLOOKUP(B88,Materiál!B:J,5,FALSE)","v":{"$error":"#N/A"}},{"$f":"VLOOKUP(B88,Materiál!B:J,4,FALSE)","v":{"$error":"#N/A"}},null,{"$f":"VLOOKUP(B88,Materiál!B:J,9,FALSE)","v":{"$error":"#N/A"}},null,null,"-","",null,{"$f":"VLOOKUP(B88,Materiál!B:J,8,FALSE)","v":{"$error":"#N/A"}},null,null,null,null,null,null,null,null,null,null,null,null,null,null,null,null,null,null,null,null,null,null,null,null,null,null,null,null,null,null,null,null,null,null,null,null,null,null,null,null,null,null,null,null,null,null,null,null,null,null,{"$error":"#N/A"},{"$error":"#N/A"}]
[null,{"$f":"Databáza!E79","v":0},{"$f":"VLOOKUP(B89,Materiál!B:J,2,FALSE)","v":{"$error":"#N/A"}},{"$f":"Databáza!F79","v":0},{"$f":"VLOOKUP(B89,Materiál!B:J,3,FALSE)","v":{"$error":"#N/A"}},{"$f":"VLOOKUP(B89,Materiál!B:J,5,FALSE)","v":{"$error":"#N/A"}},{"$f":"VLOOKUP(B89,Materiál!B:J,4,FALSE)","v":{"$error":"#N/A"}},null,{"$f":"VLOOKUP(B89,Materiál!B:J,9,FALSE)","v":{"$error":"#N/A"}},null,null,"-","",null,{"$f":"VLOOKUP(B89,Materiál!B:J,8,FALSE)","v":{"$error":"#N/A"}},null,null,null,null,null,null,null,null,null,null,null,null,null,null,null,null,null,null,null,null,null,null,null,null,null,null,null,null,null,null,null,null,null,null,null,null,null,null,null,null,null,null,null,null,null,null,null,null,null,null,{"$error":"#N/A"},{"$error":"#N/A"}]
[null,{"$f":"Databáza!E80","v":0},{"$f":"VLOOKUP(B90,Materiál!B:J,2,FALSE)","v":{"$error":"#N/A"}},{"$f":"Databáza!F80","v":0},{"$f":"VLOOKUP(B90,Materiál!B:J,3,FALSE)","v":{"$error":"#N/A"}},{"$f":"VLOOKUP(B90,Materiál!B:J,5,FALSE)","v":{"$error":"#N/A"}},{"$f":"VLOOKUP(B90,Materiál!B:J,4,FALSE)","v":{"$error":"#N/A"}},null,{"$f":"VLOOKUP(B90,Materiál!B:J,9,FALSE)","v":{"$error":"#N/A"}},null,null,"-","",null,{"$f":"VLOOKUP(B90,Materiál!B:J,8,FALSE)","v":{"$error":"#N/A"}},null,null,null,null,null,null,null,null,null,null,null,null,null,null,null,null,null,null,null,null,null,null,null,null,null,null,null,null,null,null,null,null,null,null,null,null,null,null,null,null,null,null,null,null,null,null,null,null,null,null,{"$error":"#N/A"},{"$error":"#N/A"}]
[null,{"$f":"Databáza!E81","v":0},{"$f":"VLOOKUP(B91,Materiál!B:J,2,FALSE)","v":{"$error":"#N/A"}},{"$f":"Databáza!F81","v":0},{"$f":"VLOOKUP(B91,Materiál!B:J,3,FALSE)","v":{"$error":"#N/A"}},{"$f":"VLOOKUP(B91,Materiál!B:J,5,FALSE)","v":{"$error":"#N/A"}},{"$f":"VLOOKUP(B91,Materiál!B:J,4,FALSE)","v":{"$error":"#N/A"}},null,{"$f":"VLOOKUP(B91,Materiál!B:J,9,FALSE)","v":{"$error":"#N/A"}},null,null,"-","",null,{"$f":"VLOOKUP(B91,Materiál!B:J,8,FALSE)","v":{"$error":"#N/A"}},null,null,null,null,null,null,null,null,null,null,null,null,null,null,null,null,null,null,null,null,null,null,null,null,null,null,null,null,null,null,null,null,null,null,null,null,null,null,null,null,null,null,null,null,null,null,null,null,null,null,{"$error":"#N/A"},{"$error":"#N/A"}]
[null,{"$f":"Databáza!E82","v":0},{"$f":"VLOOKUP(B92,Materiál!B:J,2,FALSE)","v":{"$error":"#N/A"}},{"$f":"Databáza!F82","v":0},{"$f":"VLOOKUP(B92,Materiál!B:J,3,FALSE)","v":{"$error":"#N/A"}},{"$f":"VLOOKUP(B92,Materiál!B:J,5,FALSE)","v":{"$error":"#N/A"}},{"$f":"VLOOKUP(B92,Materiál!B:J,4,FALSE)","v":{"$error":"#N/A"}},null,{"$f":"VLOOKUP(B92,Materiál!B:J,9,FALSE)","v":{"$error":"#N/A"}},null,null,"-","",null,{"$f":"VLOOKUP(B92,Materiál!B:J,8,FALSE)","v":{"$error":"#N/A"}},null,null,null,null,null,null,null,null,null,null,null,null,null,null,null,null,null,null,null,null,null,null,null,null,null,null,null,null,null,null,null,null,null,null,null,null,null,null,null,null,null,null,null,null,null,null,null,null,null,null,{"$error":"#N/A"},{"$error":"#N/A"}]
[null,{"$f":"Databáza!E83","v":0},{"$f":"VLOOKUP(B93,Materiál!B:J,2,FALSE)","v":{"$error":"#N/A"}},{"$f":"Databáza!F83","v":0},{"$f":"VLOOKUP(B93,Materiál!B:J,3,FALSE)","v":{"$error":"#N/A"}},{"$f":"VLOOKUP(B93,Materiál!B:J,5,FALSE)","v":{"$error":"#N/A"}},{"$f":"VLOOKUP(B93,Materiál!B:J,4,FALSE)","v":{"$error":"#N/A"}},null,{"$f":"VLOOKUP(B93,Materiál!B:J,9,FALSE)","v":{"$error":"#N/A"}},null,null,"-","",null,{"$f":"VLOOKUP(B93,Materiál!B:J,8,FALSE)","v":{"$error":"#N/A"}},null,null,null,null,null,null,null,null,null,null,null,null,null,null,null,null,null,null,null,null,null,null,null,null,null,null,null,null,null,null,null,null,null,null,null,null,null,null,null,null,null,null,null,null,null,null,null,null,null,null,{"$error":"#N/A"},{"$error":"#N/A"}]
[null,{"$f":"Databáza!E84","v":0},{"$f":"VLOOKUP(B94,Materiál!B:J,2,FALSE)","v":{"$error":"#N/A"}},{"$f":"Databáza!F84","v":0},{"$f":"VLOOKUP(B94,Materiál!B:J,3,FALSE)","v":{"$error":"#N/A"}},{"$f":"VLOOKUP(B94,Materiál!B:J,5,FALSE)","v":{"$error":"#N/A"}},{"$f":"VLOOKUP(B94,Materiál!B:J,4,FALSE)","v":{"$error":"#N/A"}},null,{"$f":"VLOOKUP(B94,Materiál!B:J,9,FALSE)","v":{"$error":"#N/A"}},null,null,"-","",null,{"$f":"VLOOKUP(B94,Materiál!B:J,8,FALSE)","v":{"$error":"#N/A"}},null,null,null,null,null,null,null,null,null,null,null,null,null,null,null,null,null,null,null,null,null,null,null,null,null,null,null,null,null,null,null,null,null,null,null,null,null,null,null,null,null,null,null,null,null,null,null,null,null,null,{"$error":"#N/A"},{"$error":"#N/A"}]
[null,{"$f":"Databáza!E85","v":0},{"$f":"VLOOKUP(B95,Materiál!B:J,2,FALSE)","v":{"$error":"#N/A"}},{"$f":"Databáza!F85","v":0},{"$f":"VLOOKUP(B95,Materiál!B:J,3,FALSE)","v":{"$error":"#N/A"}},{"$f":"VLOOKUP(B95,Materiál!B:J,5,FALSE)","v":{"$error":"#N/A"}},{"$f":"VLOOKUP(B95,Materiál!B:J,4,FALSE)","v":{"$error":"#N/A"}},null,{"$f":"VLOOKUP(B95,Materiál!B:J,9,FALSE)","v":{"$error":"#N/A"}},null,null,"-","",null,{"$f":"VLOOKUP(B95,Materiál!B:J,8,FALSE)","v":{"$error":"#N/A"}},null,null,null,null,null,null,null,null,null,null,null,null,null,null,null,null,null,null,null,null,null,null,null,null,null,null,null,null,null,null,null,null,null,null,null,null,null,null,null,null,null,null,null,null,null,null,null,null,null,null,{"$error":"#N/A"},{"$error":"#N/A"}]
[null,{"$f":"Databáza!E86","v":0},{"$f":"VLOOKUP(B96,Materiál!B:J,2,FALSE)","v":{"$error":"#N/A"}},{"$f":"Databáza!F86","v":0},{"$f":"VLOOKUP(B96,Materiál!B:J,3,FALSE)","v":{"$error":"#N/A"}},{"$f":"VLOOKUP(B96,Materiál!B:J,5,FALSE)","v":{"$error":"#N/A"}},{"$f":"VLOOKUP(B96,Materiál!B:J,4,FALSE)","v":{"$error":"#N/A"}},null,{"$f":"VLOOKUP(B96,Materiál!B:J,9,FALSE)","v":{"$error":"#N/A"}},null,null,"-","",null,{"$f":"VLOOKUP(B96,Materiál!B:J,8,FALSE)","v":{"$error":"#N/A"}},null,null,null,null,null,null,null,null,null,null,null,null,null,null,null,null,null,null,null,null,null,null,null,null,null,null,null,null,null,null,null,null,null,null,null,null,null,null,null,null,null,null,null,null,null,null,null,null,null,null,{"$error":"#N/A"},{"$error":"#N/A"}]
[null,{"$f":"Databáza!E87","v":0},{"$f":"VLOOKUP(B97,Materiál!B:J,2,FALSE)","v":{"$error":"#N/A"}},{"$f":"Databáza!F87","v":0},{"$f":"VLOOKUP(B97,Materiál!B:J,3,FALSE)","v":{"$error":"#N/A"}},{"$f":"VLOOKUP(B97,Materiál!B:J,5,FALSE)","v":{"$error":"#N/A"}},{"$f":"VLOOKUP(B97,Materiál!B:J,4,FALSE)","v":{"$error":"#N/A"}},null,{"$f":"VLOOKUP(B97,Materiál!B:J,9,FALSE)","v":{"$error":"#N/A"}},null,null,"-","",null,{"$f":"VLOOKUP(B97,Materiál!B:J,8,FALSE)","v":{"$error":"#N/A"}},null,null,null,null,null,null,null,null,null,null,null,null,null,null,null,null,null,null,null,null,null,null,null,null,null,null,null,null,null,null,null,null,null,null,null,null,null,null,null,null,null,null,null,null,null,null,null,null,null,null,{"$error":"#N/A"},{"$error":"#N/A"}]
[null,{"$f":"Databáza!E88","v":0},{"$f":"VLOOKUP(B98,Materiál!B:J,2,FALSE)","v":{"$error":"#N/A"}},{"$f":"Databáza!F88","v":0},{"$f":"VLOOKUP(B98,Materiál!B:J,3,FALSE)","v":{"$error":"#N/A"}},{"$f":"VLOOKUP(B98,Materiál!B:J,5,FALSE)","v":{"$error":"#N/A"}},{"$f":"VLOOKUP(B98,Materiál!B:J,4,FALSE)","v":{"$error":"#N/A"}},null,{"$f":"VLOOKUP(B98,Materiál!B:J,9,FALSE)","v":{"$error":"#N/A"}},null,null,"-","",null,{"$f":"VLOOKUP(B98,Materiál!B:J,8,FALSE)","v":{"$error":"#N/A"}},null,null,null,null,null,null,null,null,null,null,null,null,null,null,null,null,null,null,null,null,null,null,null,null,null,null,null,null,null,null,null,null,null,null,null,null,null,null,null,null,null,null,null,null,null,null,null,null,null,null,{"$error":"#N/A"},{"$error":"#N/A"}]
[null,{"$f":"Databáza!E89","v":0},{"$f":"VLOOKUP(B99,Materiál!B:J,2,FALSE)","v":{"$error":"#N/A"}},{"$f":"Databáza!F89","v":0},{"$f":"VLOOKUP(B99,Materiál!B:J,3,FALSE)","v":{"$error":"#N/A"}},{"$f":"VLOOKUP(B99,Materiál!B:J,5,FALSE)","v":{"$error":"#N/A"}},{"$f":"VLOOKUP(B99,Materiál!B:J,4,FALSE)","v":{"$error":"#N/A"}},null,{"$f":"VLOOKUP(B99,Materiál!B:J,9,FALSE)","v":{"$error":"#N/A"}},null,null,"-","",null,{"$f":"VLOOKUP(B99,Materiál!B:J,8,FALSE)","v":{"$error":"#N/A"}},null,null,null,null,null,null,null,null,null,null,null,null,null,null,null,null,null,null,null,null,null,null,null,null,null,null,null,null,null,null,null,null,null,null,null,null,null,null,null,null,null,null,null,null,null,null,null,null,null,null,{"$error":"#N/A"},{"$error":"#N/A"}]
[null,{"$f":"Databáza!E90","v":0},{"$f":"VLOOKUP(B100,Materiál!B:J,2,FALSE)","v":{"$error":"#N/A"}},{"$f":"Databáza!F90","v":0},{"$f":"VLOOKUP(B100,Materiál!B:J,3,FALSE)","v":{"$error":"#N/A"}},{"$f":"VLOOKUP(B100,Materiál!B:J,5,FALSE)","v":{"$error":"#N/A"}},{"$f":"VLOOKUP(B100,Materiál!B:J,4,FALSE)","v":{"$error":"#N/A"}},null,{"$f":"VLOOKUP(B100,Materiál!B:J,9,FALSE)","v":{"$error":"#N/A"}},null,null,"-","",null,{"$f":"VLOOKUP(B100,Materiál!B:J,8,FALSE)","v":{"$error":"#N/A"}},null,null,null,null,null,null,null,null,null,null,null,null,null,null,null,null,null,null,null,null,null,null,null,null,null,null,null,null,null,null,null,null,null,null,null,null,null,null,null,null,null,null,null,null,null,null,null,null,null,null,{"$error":"#N/A"},{"$error":"#N/A"}]
[null,{"$f":"Databáza!E91","v":0},{"$f":"VLOOKUP(B101,Materiál!B:J,2,FALSE)","v":{"$error":"#N/A"}},{"$f":"Databáza!F91","v":0},{"$f":"VLOOKUP(B101,Materiál!B:J,3,FALSE)","v":{"$error":"#N/A"}},{"$f":"VLOOKUP(B101,Materiál!B:J,5,FALSE)","v":{"$error":"#N/A"}},{"$f":"VLOOKUP(B101,Materiál!B:J,4,FALSE)","v":{"$error":"#N/A"}},null,{"$f":"VLOOKUP(B101,Materiál!B:J,9,FALSE)","v":{"$error":"#N/A"}},null,null,"-","",null,{"$f":"VLOOKUP(B101,Materiál!B:J,8,FALSE)","v":{"$error":"#N/A"}},null,null,null,null,null,null,null,null,null,null,null,null,null,null,null,null,null,null,null,null,null,null,null,null,null,null,null,null,null,null,null,null,null,null,null,null,null,null,null,null,null,null,null,null,null,null,null,null,null,null,{"$error":"#N/A"},{"$error":"#N/A"}]
[null,{"$f":"Databáza!E92","v":0},{"$f":"VLOOKUP(B102,Materiál!B:J,2,FALSE)","v":{"$error":"#N/A"}},{"$f":"Databáza!F92","v":0},{"$f":"VLOOKUP(B102,Materiál!B:J,3,FALSE)","v":{"$error":"#N/A"}},{"$f":"VLOOKUP(B102,Materiál!B:J,5,FALSE)","v":{"$error":"#N/A"}},{"$f":"VLOOKUP(B102,Materiál!B:J,4,FALSE)","v":{"$error":"#N/A"}},null,{"$f":"VLOOKUP(B102,Materiál!B:J,9,FALSE)","v":{"$error":"#N/A"}},null,null,"-","",null,{"$f":"VLOOKUP(B102,Materiál!B:J,8,FALSE)","v":{"$error":"#N/A"}},null,null,null,null,null,null,null,null,null,null,null,null,null,null,null,null,null,null,null,null,null,null,null,null,null,null,null,null,null,null,null,null,null,null,null,null,null,null,null,null,null,null,null,null,null,null,null,null,null,null,{"$error":"#N/A"},{"$error":"#N/A"}]
[null,{"$f":"Databáza!E93","v":0},{"$f":"VLOOKUP(B103,Materiál!B:J,2,FALSE)","v":{"$error":"#N/A"}},{"$f":"Databáza!F93","v":0},{"$f":"VLOOKUP(B103,Materiál!B:J,3,FALSE)","v":{"$error":"#N/A"}},{"$f":"VLOOKUP(B103,Materiál!B:J,5,FALSE)","v":{"$error":"#N/A"}},{"$f":"VLOOKUP(B103,Materiál!B:J,4,FALSE)","v":{"$error":"#N/A"}},null,{"$f":"VLOOKUP(B103,Materiál!B:J,9,FALSE)","v":{"$error":"#N/A"}},null,null,"-","",null,{"$f":"VLOOKUP(B103,Materiál!B:J,8,FALSE)","v":{"$error":"#N/A"}},null,null,null,null,null,null,null,null,null,null,null,null,null,null,null,null,null,null,null,null,null,null,null,null,null,null,null,null,null,null,null,null,null,null,null,null,null,null,null,null,null,null,null,null,null,null,null,null,null,null,{"$error":"#N/A"},{"$error":"#N/A"}]
[null,{"$f":"Databáza!E94","v":0},{"$f":"VLOOKUP(B104,Materiál!B:J,2,FALSE)","v":{"$error":"#N/A"}},{"$f":"Databáza!F94","v":0},{"$f":"VLOOKUP(B104,Materiál!B:J,3,FALSE)","v":{"$error":"#N/A"}},{"$f":"VLOOKUP(B104,Materiál!B:J,5,FALSE)","v":{"$error":"#N/A"}},{"$f":"VLOOKUP(B104,Materiál!B:J,4,FALSE)","v":{"$error":"#N/A"}},null,{"$f":"VLOOKUP(B104,Materiál!B:J,9,FALSE)","v":{"$error":"#N/A"}},null,null,"-","",null,{"$f":"VLOOKUP(B104,Materiál!B:J,8,FALSE)","v":{"$error":"#N/A"}},null,null,null,null,null,null,null,null,null,null,null,null,null,null,null,null,null,null,null,null,null,null,null,null,null,null,null,null,null,null,null,null,null,null,null,null,null,null,null,null,null,null,null,null,null,null,null,null,null,null,{"$error":"#N/A"},{"$error":"#N/A"}]
[null,{"$f":"Databáza!E95","v":0},{"$f":"VLOOKUP(B105,Materiál!B:J,2,FALSE)","v":{"$error":"#N/A"}},{"$f":"Databáza!F95","v":0},{"$f":"VLOOKUP(B105,Materiál!B:J,3,FALSE)","v":{"$error":"#N/A"}},{"$f":"VLOOKUP(B105,Materiál!B:J,5,FALSE)","v":{"$error":"#N/A"}},{"$f":"VLOOKUP(B105,Materiál!B:J,4,FALSE)","v":{"$error":"#N/A"}},null,{"$f":"VLOOKUP(B105,Materiál!B:J,9,FALSE)","v":{"$error":"#N/A"}},null,null,"-","",null,{"$f":"VLOOKUP(B105,Materiál!B:J,8,FALSE)","v":{"$error":"#N/A"}},null,null,null,null,null,null,null,null,null,null,null,null,null,null,null,null,null,null,null,null,null,null,null,null,null,null,null,null,null,null,null,null,null,null,null,null,null,null,null,null,null,null,null,null,null,null,null,null,null,null,{"$error":"#N/A"},{"$error":"#N/A"}]
[null,{"$f":"Databáza!E96","v":0},{"$f":"VLOOKUP(B106,Materiál!B:J,2,FALSE)","v":{"$error":"#N/A"}},{"$f":"Databáza!F96","v":0},{"$f":"VLOOKUP(B106,Materiál!B:J,3,FALSE)","v":{"$error":"#N/A"}},{"$f":"VLOOKUP(B106,Materiál!B:J,5,FALSE)","v":{"$error":"#N/A"}},{"$f":"VLOOKUP(B106,Materiál!B:J,4,FALSE)","v":{"$error":"#N/A"}},null,{"$f":"VLOOKUP(B106,Materiál!B:J,9,FALSE)","v":{"$error":"#N/A"}},null,null,"-","",null,{"$f":"VLOOKUP(B106,Materiál!B:J,8,FALSE)","v":{"$error":"#N/A"}},null,null,null,null,null,null,null,null,null,null,null,null,null,null,null,null,null,null,null,null,null,null,null,null,null,null,null,null,null,null,null,null,null,null,null,null,null,null,null,null,null,null,null,null,null,null,null,null,null,null,{"$error":"#N/A"},{"$error":"#N/A"}]
[null,{"$f":"Databáza!E97","v":0},{"$f":"VLOOKUP(B107,Materiál!B:J,2,FALSE)","v":{"$error":"#N/A"}},{"$f":"Databáza!F97","v":0},{"$f":"VLOOKUP(B107,Materiál!B:J,3,FALSE)","v":{"$error":"#N/A"}},{"$f":"VLOOKUP(B107,Materiál!B:J,5,FALSE)","v":{"$error":"#N/A"}},{"$f":"VLOOKUP(B107,Materiál!B:J,4,FALSE)","v":{"$error":"#N/A"}},null,{"$f":"VLOOKUP(B107,Materiál!B:J,9,FALSE)","v":{"$error":"#N/A"}},null,null,"-","",null,{"$f":"VLOOKUP(B107,Materiál!B:J,8,FALSE)","v":{"$error":"#N/A"}},null,null,null,null,null,null,null,null,null,null,null,null,null,null,null,null,null,null,null,null,null,null,null,null,null,null,null,null,null,null,null,null,null,null,null,null,null,null,null,null,null,null,null,null,null,null,null,null,null,null,{"$error":"#N/A"},{"$error":"#N/A"}]
[null,{"$f":"Databáza!E98","v":0},{"$f":"VLOOKUP(B108,Materiál!B:J,2,FALSE)","v":{"$error":"#N/A"}},{"$f":"Databáza!F98","v":0},{"$f":"VLOOKUP(B108,Materiál!B:J,3,FALSE)","v":{"$error":"#N/A"}},{"$f":"VLOOKUP(B108,Materiál!B:J,5,FALSE)","v":{"$error":"#N/A"}},{"$f":"VLOOKUP(B108,Materiál!B:J,4,FALSE)","v":{"$error":"#N/A"}},null,{"$f":"VLOOKUP(B108,Materiál!B:J,9,FALSE)","v":{"$error":"#N/A"}},null,null,"-","",null,{"$f":"VLOOKUP(B108,Materiál!B:J,8,FALSE)","v":{"$error":"#N/A"}},null,null,null,null,null,null,null,null,null,null,null,null,null,null,null,null,null,null,null,null,null,null,null,null,null,null,null,null,null,null,null,null,null,null,null,null,null,null,null,null,null,null,null,null,null,null,null,null,null,null,{"$error":"#N/A"},{"$error":"#N/A"}]
[null,{"$f":"Databáza!E99","v":0},{"$f":"VLOOKUP(B109,Materiál!B:J,2,FALSE)","v":{"$error":"#N/A"}},{"$f":"Databáza!F99","v":0},{"$f":"VLOOKUP(B109,Materiál!B:J,3,FALSE)","v":{"$error":"#N/A"}},{"$f":"VLOOKUP(B109,Materiál!B:J,5,FALSE)","v":{"$error":"#N/A"}},{"$f":"VLOOKUP(B109,Materiál!B:J,4,FALSE)","v":{"$error":"#N/A"}},null,{"$f":"VLOOKUP(B109,Materiál!B:J,9,FALSE)","v":{"$error":"#N/A"}},null,null,"-","",null,{"$f":"VLOOKUP(B109,Materiál!B:J,8,FALSE)","v":{"$error":"#N/A"}},null,null,null,null,null,null,null,null,null,null,null,null,null,null,null,null,null,null,null,null,null,null,null,null,null,null,null,null,null,null,null,null,null,null,null,null,null,null,null,null,null,null,null,null,null,null,null,null,null,null,{"$error":"#N/A"},{"$error":"#N/A"}]
[null,{"$f":"Databáza!E100","v":0},{"$f":"VLOOKUP(B110,Materiál!B:J,2,FALSE)","v":{"$error":"#N/A"}},{"$f":"Databáza!F100","v":0},{"$f":"VLOOKUP(B110,Materiál!B:J,3,FALSE)","v":{"$error":"#N/A"}},{"$f":"VLOOKUP(B110,Materiál!B:J,5,FALSE)","v":{"$error":"#N/A"}},{"$f":"VLOOKUP(B110,Materiál!B:J,4,FALSE)","v":{"$error":"#N/A"}},null,{"$f":"VLOOKUP(B110,Materiál!B:J,9,FALSE)","v":{"$error":"#N/A"}},null,null,"-","",null,{"$f":"VLOOKUP(B110,Materiál!B:J,8,FALSE)","v":{"$error":"#N/A"}},null,null,null,null,null,null,null,null,null,null,null,null,null,null,null,null,null,null,null,null,null,null,null,null,null,null,null,null,null,null,null,null,null,null,null,null,null,null,null,null,null,null,null,null,null,null,null,null,null,null,{"$error":"#N/A"},{"$error":"#N/A"}]
[null,{"$f":"Databáza!E101","v":0},{"$f":"VLOOKUP(B111,Materiál!B:J,2,FALSE)","v":{"$error":"#N/A"}},{"$f":"Databáza!F101","v":0},{"$f":"VLOOKUP(B111,Materiál!B:J,3,FALSE)","v":{"$error":"#N/A"}},{"$f":"VLOOKUP(B111,Materiál!B:J,5,FALSE)","v":{"$error":"#N/A"}},{"$f":"VLOOKUP(B111,Materiál!B:J,4,FALSE)","v":{"$error":"#N/A"}},null,{"$f":"VLOOKUP(B111,Materiál!B:J,9,FALSE)","v":{"$error":"#N/A"}},null,null,"-","",null,{"$f":"VLOOKUP(B111,Materiál!B:J,8,FALSE)","v":{"$error":"#N/A"}},null,null,null,null,null,null,null,null,null,null,null,null,null,null,null,null,null,null,null,null,null,null,null,null,null,null,null,null,null,null,null,null,null,null,null,null,null,null,null,null,null,null,null,null,null,null,null,null,null,null,{"$error":"#N/A"},{"$error":"#N/A"}]
[null,{"$f":"Databáza!E102","v":0},{"$f":"VLOOKUP(B112,Materiál!B:J,2,FALSE)","v":{"$error":"#N/A"}},{"$f":"Databáza!F102","v":0},{"$f":"VLOOKUP(B112,Materiál!B:J,3,FALSE)","v":{"$error":"#N/A"}},{"$f":"VLOOKUP(B112,Materiál!B:J,5,FALSE)","v":{"$error":"#N/A"}},{"$f":"VLOOKUP(B112,Materiál!B:J,4,FALSE)","v":{"$error":"#N/A"}},null,{"$f":"VLOOKUP(B112,Materiál!B:J,9,FALSE)","v":{"$error":"#N/A"}},null,null,"-","",null,{"$f":"VLOOKUP(B112,Materiál!B:J,8,FALSE)","v":{"$error":"#N/A"}},null,null,null,null,null,null,null,null,null,null,null,null,null,null,null,null,null,null,null,null,null,null,null,null,null,null,null,null,null,null,null,null,null,null,null,null,null,null,null,null,null,null,null,null,null,null,null,null,null,null,{"$error":"#N/A"},{"$error":"#N/A"}]
[null,{"$f":"Databáza!E103","v":0},{"$f":"VLOOKUP(B113,Materiál!B:J,2,FALSE)","v":{"$error":"#N/A"}},{"$f":"Databáza!F103","v":0},{"$f":"VLOOKUP(B113,Materiál!B:J,3,FALSE)","v":{"$error":"#N/A"}},{"$f":"VLOOKUP(B113,Materiál!B:J,5,FALSE)","v":{"$error":"#N/A"}},{"$f":"VLOOKUP(B113,Materiál!B:J,4,FALSE)","v":{"$error":"#N/A"}},null,{"$f":"VLOOKUP(B113,Materiál!B:J,9,FALSE)","v":{"$error":"#N/A"}},null,null,"-","",null,{"$f":"VLOOKUP(B113,Materiál!B:J,8,FALSE)","v":{"$error":"#N/A"}},null,null,null,null,null,null,null,null,null,null,null,null,null,null,null,null,null,null,null,null,null,null,null,null,null,null,null,null,null,null,null,null,null,null,null,null,null,null,null,null,null,null,null,null,null,null,null,null,null,null,{"$error":"#N/A"},{"$error":"#N/A"}]
[null,{"$f":"Databáza!E104","v":0},{"$f":"VLOOKUP(B114,Materiál!B:J,2,FALSE)","v":{"$error":"#N/A"}},{"$f":"Databáza!F104","v":0},{"$f":"VLOOKUP(B114,Materiál!B:J,3,FALSE)","v":{"$error":"#N/A"}},{"$f":"VLOOKUP(B114,Materiál!B:J,5,FALSE)","v":{"$error":"#N/A"}},{"$f":"VLOOKUP(B114,Materiál!B:J,4,FALSE)","v":{"$error":"#N/A"}},null,{"$f":"VLOOKUP(B114,Materiál!B:J,9,FALSE)","v":{"$error":"#N/A"}},null,null,"-","",null,{"$f":"VLOOKUP(B114,Materiál!B:J,8,FALSE)","v":{"$error":"#N/A"}},null,null,null,null,null,null,null,null,null,null,null,null,null,null,null,null,null,null,null,null,null,null,null,null,null,null,null,null,null,null,null,null,null,null,null,null,null,null,null,null,null,null,null,null,null,null,null,null,null,null,{"$error":"#N/A"},{"$error":"#N/A"}]
[null,{"$f":"Databáza!E105","v":0},{"$f":"VLOOKUP(B115,Materiál!B:J,2,FALSE)","v":{"$error":"#N/A"}},{"$f":"Databáza!F105","v":0},{"$f":"VLOOKUP(B115,Materiál!B:J,3,FALSE)","v":{"$error":"#N/A"}},{"$f":"VLOOKUP(B115,Materiál!B:J,5,FALSE)","v":{"$error":"#N/A"}},{"$f":"VLOOKUP(B115,Materiál!B:J,4,FALSE)","v":{"$error":"#N/A"}},null,{"$f":"VLOOKUP(B115,Materiál!B:J,9,FALSE)","v":{"$error":"#N/A"}},null,null,"-","",null,{"$f":"VLOOKUP(B115,Materiál!B:J,8,FALSE)","v":{"$error":"#N/A"}},null,null,null,null,null,null,null,null,null,null,null,null,null,null,null,null,null,null,null,null,null,null,null,null,null,null,null,null,null,null,null,null,null,null,null,null,null,null,null,null,null,null,null,null,null,null,null,null,null,null,{"$error":"#N/A"},{"$error":"#N/A"}]
[null,{"$f":"Databáza!E106","v":0},{"$f":"VLOOKUP(B116,Materiál!B:J,2,FALSE)","v":{"$error":"#N/A"}},{"$f":"Databáza!F106","v":0},{"$f":"VLOOKUP(B116,Materiál!B:J,3,FALSE)","v":{"$error":"#N/A"}},{"$f":"VLOOKUP(B116,Materiál!B:J,5,FALSE)","v":{"$error":"#N/A"}},{"$f":"VLOOKUP(B116,Materiál!B:J,4,FALSE)","v":{"$error":"#N/A"}},null,{"$f":"VLOOKUP(B116,Materiál!B:J,9,FALSE)","v":{"$error":"#N/A"}},null,null,"-","",null,{"$f":"VLOOKUP(B116,Materiál!B:J,8,FALSE)","v":{"$error":"#N/A"}},null,null,null,null,null,null,null,null,null,null,null,null,null,null,null,null,null,null,null,null,null,null,null,null,null,null,null,null,null,null,null,null,null,null,null,null,null,null,null,null,null,null,null,null,null,null,null,null,null,null,{"$error":"#N/A"},{"$error":"#N/A"}]
[null,{"$f":"Databáza!E107","v":0},{"$f":"VLOOKUP(B117,Materiál!B:J,2,FALSE)","v":{"$error":"#N/A"}},{"$f":"Databáza!F107","v":0},{"$f":"VLOOKUP(B117,Materiál!B:J,3,FALSE)","v":{"$error":"#N/A"}},{"$f":"VLOOKUP(B117,Materiál!B:J,5,FALSE)","v":{"$error":"#N/A"}},{"$f":"VLOOKUP(B117,Materiál!B:J,4,FALSE)","v":{"$error":"#N/A"}},null,{"$f":"VLOOKUP(B117,Materiál!B:J,9,FALSE)","v":{"$error":"#N/A"}},null,null,"-","",null,{"$f":"VLOOKUP(B117,Materiál!B:J,8,FALSE)","v":{"$error":"#N/A"}},null,null,null,null,null,null,null,null,null,null,null,null,null,null,null,null,null,null,null,null,null,null,null,null,null,null,null,null,null,null,null,null,null,null,null,null,null,null,null,null,null,null,null,null,null,null,null,null,null,null,{"$error":"#N/A"},{"$error":"#N/A"}]
[null,{"$f":"Databáza!E108","v":0},{"$f":"VLOOKUP(B118,Materiál!B:J,2,FALSE)","v":{"$error":"#N/A"}},{"$f":"Databáza!F108","v":0},{"$f":"VLOOKUP(B118,Materiál!B:J,3,FALSE)","v":{"$error":"#N/A"}},{"$f":"VLOOKUP(B118,Materiál!B:J,5,FALSE)","v":{"$error":"#N/A"}},{"$f":"VLOOKUP(B118,Materiál!B:J,4,FALSE)","v":{"$error":"#N/A"}},null,{"$f":"VLOOKUP(B118,Materiál!B:J,9,FALSE)","v":{"$error":"#N/A"}},null,null,"-","",null,{"$f":"VLOOKUP(B118,Materiál!B:J,8,FALSE)","v":{"$error":"#N/A"}},null,null,null,null,null,null,null,null,null,null,null,null,null,null,null,null,null,null,null,null,null,null,null,null,null,null,null,null,null,null,null,null,null,null,null,null,null,null,null,null,null,null,null,null,null,null,null,null,null,null,{"$error":"#N/A"},{"$error":"#N/A"}]
[null,{"$f":"Databáza!E109","v":0},{"$f":"VLOOKUP(B119,Materiál!B:J,2,FALSE)","v":{"$error":"#N/A"}},{"$f":"Databáza!F109","v":0},{"$f":"VLOOKUP(B119,Materiál!B:J,3,FALSE)","v":{"$error":"#N/A"}},{"$f":"VLOOKUP(B119,Materiál!B:J,5,FALSE)","v":{"$error":"#N/A"}},{"$f":"VLOOKUP(B119,Materiál!B:J,4,FALSE)","v":{"$error":"#N/A"}},null,{"$f":"VLOOKUP(B119,Materiál!B:J,9,FALSE)","v":{"$error":"#N/A"}},null,null,"-","",null,{"$f":"VLOOKUP(B119,Materiál!B:J,8,FALSE)","v":{"$error":"#N/A"}},null,null,null,null,null,null,null,null,null,null,null,null,null,null,null,null,null,null,null,null,null,null,null,null,null,null,null,null,null,null,null,null,null,null,null,null,null,null,null,null,null,null,null,null,null,null,null,null,null,null,{"$error":"#N/A"},{"$error":"#N/A"}]
[null,{"$f":"Databáza!E110","v":0},{"$f":"VLOOKUP(B120,Materiál!B:J,2,FALSE)","v":{"$error":"#N/A"}},{"$f":"Databáza!F110","v":0},{"$f":"VLOOKUP(B120,Materiál!B:J,3,FALSE)","v":{"$error":"#N/A"}},{"$f":"VLOOKUP(B120,Materiál!B:J,5,FALSE)","v":{"$error":"#N/A"}},{"$f":"VLOOKUP(B120,Materiál!B:J,4,FALSE)","v":{"$error":"#N/A"}},null,{"$f":"VLOOKUP(B120,Materiál!B:J,9,FALSE)","v":{"$error":"#N/A"}},null,null,"-","",null,{"$f":"VLOOKUP(B120,Materiál!B:J,8,FALSE)","v":{"$error":"#N/A"}},null,null,null,null,null,null,null,null,null,null,null,null,null,null,null,null,null,null,null,null,null,null,null,null,null,null,null,null,null,null,null,null,null,null,null,null,null,null,null,null,null,null,null,null,null,null,null,null,null,null,{"$error":"#N/A"},{"$error":"#N/A"}]
[null,{"$f":"Databáza!E111","v":0},{"$f":"VLOOKUP(B121,Materiál!B:J,2,FALSE)","v":{"$error":"#N/A"}},{"$f":"Databáza!F111","v":0},{"$f":"VLOOKUP(B121,Materiál!B:J,3,FALSE)","v":{"$error":"#N/A"}},{"$f":"VLOOKUP(B121,Materiál!B:J,5,FALSE)","v":{"$error":"#N/A"}},{"$f":"VLOOKUP(B121,Materiál!B:J,4,FALSE)","v":{"$error":"#N/A"}},null,{"$f":"VLOOKUP(B121,Materiál!B:J,9,FALSE)","v":{"$error":"#N/A"}},null,null,"-","",null,{"$f":"VLOOKUP(B121,Materiál!B:J,8,FALSE)","v":{"$error":"#N/A"}},null,null,null,null,null,null,null,null,null,null,null,null,null,null,null,null,null,null,null,null,null,null,null,null,null,null,null,null,null,null,null,null,null,null,null,null,null,null,null,null,null,null,null,null,null,null,null,null,null,null,{"$error":"#N/A"},{"$error":"#N/A"}]
[null,{"$f":"Databáza!E112","v":0},{"$f":"VLOOKUP(B122,Materiál!B:J,2,FALSE)","v":{"$error":"#N/A"}},{"$f":"Databáza!F112","v":0},{"$f":"VLOOKUP(B122,Materiál!B:J,3,FALSE)","v":{"$error":"#N/A"}},{"$f":"VLOOKUP(B122,Materiál!B:J,5,FALSE)","v":{"$error":"#N/A"}},{"$f":"VLOOKUP(B122,Materiál!B:J,4,FALSE)","v":{"$error":"#N/A"}},null,{"$f":"VLOOKUP(B122,Materiál!B:J,9,FALSE)","v":{"$error":"#N/A"}},null,null,"-","",null,{"$f":"VLOOKUP(B122,Materiál!B:J,8,FALSE)","v":{"$error":"#N/A"}},null,null,null,null,null,null,null,null,null,null,null,null,null,null,null,null,null,null,null,null,null,null,null,null,null,null,null,null,null,null,null,null,null,null,null,null,null,null,null,null,null,null,null,null,null,null,null,null,null,null,{"$error":"#N/A"},{"$error":"#N/A"}]
[null,{"$f":"Databáza!E113","v":0},{"$f":"VLOOKUP(B123,Materiál!B:J,2,FALSE)","v":{"$error":"#N/A"}},{"$f":"Databáza!F113","v":0},{"$f":"VLOOKUP(B123,Materiál!B:J,3,FALSE)","v":{"$error":"#N/A"}},{"$f":"VLOOKUP(B123,Materiál!B:J,5,FALSE)","v":{"$error":"#N/A"}},{"$f":"VLOOKUP(B123,Materiál!B:J,4,FALSE)","v":{"$error":"#N/A"}},null,{"$f":"VLOOKUP(B123,Materiál!B:J,9,FALSE)","v":{"$error":"#N/A"}},null,null,"-","",null,{"$f":"VLOOKUP(B123,Materiál!B:J,8,FALSE)","v":{"$error":"#N/A"}},null,null,null,null,null,null,null,null,null,null,null,null,null,null,null,null,null,null,null,null,null,null,null,null,null,null,null,null,null,null,null,null,null,null,null,null,null,null,null,null,null,null,null,null,null,null,null,null,null,null,{"$error":"#N/A"},{"$error":"#N/A"}]
[null,{"$f":"Databáza!E114","v":0},{"$f":"VLOOKUP(B124,Materiál!B:J,2,FALSE)","v":{"$error":"#N/A"}},{"$f":"Databáza!F114","v":0},{"$f":"VLOOKUP(B124,Materiál!B:J,3,FALSE)","v":{"$error":"#N/A"}},{"$f":"VLOOKUP(B124,Materiál!B:J,5,FALSE)","v":{"$error":"#N/A"}},{"$f":"VLOOKUP(B124,Materiál!B:J,4,FALSE)","v":{"$error":"#N/A"}},null,{"$f":"VLOOKUP(B124,Materiál!B:J,9,FALSE)","v":{"$error":"#N/A"}},null,null,"-","",null,{"$f":"VLOOKUP(B124,Materiál!B:J,8,FALSE)","v":{"$error":"#N/A"}},null,null,null,null,null,null,null,null,null,null,null,null,null,null,null,null,null,null,null,null,null,null,null,null,null,null,null,null,null,null,null,null,null,null,null,null,null,null,null,null,null,null,null,null,null,null,null,null,null,null,{"$error":"#N/A"},{"$error":"#N/A"}]
[null,{"$f":"Databáza!E115","v":0},{"$f":"VLOOKUP(B125,Materiál!B:J,2,FALSE)","v":{"$error":"#N/A"}},{"$f":"Databáza!F115","v":0},{"$f":"VLOOKUP(B125,Materiál!B:J,3,FALSE)","v":{"$error":"#N/A"}},{"$f":"VLOOKUP(B125,Materiál!B:J,5,FALSE)","v":{"$error":"#N/A"}},{"$f":"VLOOKUP(B125,Materiál!B:J,4,FALSE)","v":{"$error":"#N/A"}},null,{"$f":"VLOOKUP(B125,Materiál!B:J,9,FALSE)","v":{"$error":"#N/A"}},null,null,"-","",null,{"$f":"VLOOKUP(B125,Materiál!B:J,8,FALSE)","v":{"$error":"#N/A"}},null,null,null,null,null,null,null,null,null,null,null,null,null,null,null,null,null,null,null,null,null,null,null,null,null,null,null,null,null,null,null,null,null,null,null,null,null,null,null,null,null,null,null,null,null,null,null,null,null,null,{"$error":"#N/A"},{"$error":"#N/A"}]
[null,{"$f":"Databáza!E116","v":0},{"$f":"VLOOKUP(B126,Materiál!B:J,2,FALSE)","v":{"$error":"#N/A"}},{"$f":"Databáza!F116","v":0},{"$f":"VLOOKUP(B126,Materiál!B:J,3,FALSE)","v":{"$error":"#N/A"}},{"$f":"VLOOKUP(B126,Materiál!B:J,5,FALSE)","v":{"$error":"#N/A"}},{"$f":"VLOOKUP(B126,Materiál!B:J,4,FALSE)","v":{"$error":"#N/A"}},null,{"$f":"VLOOKUP(B126,Materiál!B:J,9,FALSE)","v":{"$error":"#N/A"}},null,null,"-","",null,{"$f":"VLOOKUP(B126,Materiál!B:J,8,FALSE)","v":{"$error":"#N/A"}},null,null,null,null,null,null,null,null,null,null,null,null,null,null,null,null,null,null,null,null,null,null,null,null,null,null,null,null,null,null,null,null,null,null,null,null,null,null,null,null,null,null,null,null,null,null,null,null,null,null,{"$error":"#N/A"},{"$error":"#N/A"}]
[null,{"$f":"Databáza!E117","v":0},{"$f":"VLOOKUP(B127,Materiál!B:J,2,FALSE)","v":{"$error":"#N/A"}},{"$f":"Databáza!F117","v":0},{"$f":"VLOOKUP(B127,Materiál!B:J,3,FALSE)","v":{"$error":"#N/A"}},{"$f":"VLOOKUP(B127,Materiál!B:J,5,FALSE)","v":{"$error":"#N/A"}},{"$f":"VLOOKUP(B127,Materiál!B:J,4,FALSE)","v":{"$error":"#N/A"}},null,{"$f":"VLOOKUP(B127,Materiál!B:J,9,FALSE)","v":{"$error":"#N/A"}},null,null,"-","",null,{"$f":"VLOOKUP(B127,Materiál!B:J,8,FALSE)","v":{"$error":"#N/A"}},null,null,null,null,null,null,null,null,null,null,null,null,null,null,null,null,null,null,null,null,null,null,null,null,null,null,null,null,null,null,null,null,null,null,null,null,null,null,null,null,null,null,null,null,null,null,null,null,null,null,{"$error":"#N/A"},{"$error":"#N/A"}]
[null,{"$f":"Databáza!E118","v":0},{"$f":"VLOOKUP(B128,Materiál!B:J,2,FALSE)","v":{"$error":"#N/A"}},{"$f":"Databáza!F118","v":0},{"$f":"VLOOKUP(B128,Materiál!B:J,3,FALSE)","v":{"$error":"#N/A"}},{"$f":"VLOOKUP(B128,Materiál!B:J,5,FALSE)","v":{"$error":"#N/A"}},{"$f":"VLOOKUP(B128,Materiál!B:J,4,FALSE)","v":{"$error":"#N/A"}},null,{"$f":"VLOOKUP(B128,Materiál!B:J,9,FALSE)","v":{"$error":"#N/A"}},null,null,"-","",null,{"$f":"VLOOKUP(B128,Materiál!B:J,8,FALSE)","v":{"$error":"#N/A"}},null,null,null,null,null,null,null,null,null,null,null,null,null,null,null,null,null,null,null,null,null,null,null,null,null,null,null,null,null,null,null,null,null,null,null,null,null,null,null,null,null,null,null,null,null,null,null,null,null,null,{"$error":"#N/A"},{"$error":"#N/A"}]
[null,{"$f":"Databáza!E119","v":0},{"$f":"VLOOKUP(B129,Materiál!B:J,2,FALSE)","v":{"$error":"#N/A"}},{"$f":"Databáza!F119","v":0},{"$f":"VLOOKUP(B129,Materiál!B:J,3,FALSE)","v":{"$error":"#N/A"}},{"$f":"VLOOKUP(B129,Materiál!B:J,5,FALSE)","v":{"$error":"#N/A"}},{"$f":"VLOOKUP(B129,Materiál!B:J,4,FALSE)","v":{"$error":"#N/A"}},null,{"$f":"VLOOKUP(B129,Materiál!B:J,9,FALSE)","v":{"$error":"#N/A"}},null,null,"-","",null,{"$f":"VLOOKUP(B129,Materiál!B:J,8,FALSE)","v":{"$error":"#N/A"}},null,null,null,null,null,null,null,null,null,null,null,null,null,null,null,null,null,null,null,null,null,null,null,null,null,null,null,null,null,null,null,null,null,null,null,null,null,null,null,null,null,null,null,null,null,null,null,null,null,null,{"$error":"#N/A"},{"$error":"#N/A"}]
[null,{"$f":"Databáza!E120","v":0},{"$f":"VLOOKUP(B130,Materiál!B:J,2,FALSE)","v":{"$error":"#N/A"}},{"$f":"Databáza!F120","v":0},{"$f":"VLOOKUP(B130,Materiál!B:J,3,FALSE)","v":{"$error":"#N/A"}},{"$f":"VLOOKUP(B130,Materiál!B:J,5,FALSE)","v":{"$error":"#N/A"}},{"$f":"VLOOKUP(B130,Materiál!B:J,4,FALSE)","v":{"$error":"#N/A"}},null,{"$f":"VLOOKUP(B130,Materiál!B:J,9,FALSE)","v":{"$error":"#N/A"}},null,null,"-","",null,{"$f":"VLOOKUP(B130,Materiál!B:J,8,FALSE)","v":{"$error":"#N/A"}},null,null,null,null,null,null,null,null,null,null,null,null,null,null,null,null,null,null,null,null,null,null,null,null,null,null,null,null,null,null,null,null,null,null,null,null,null,null,null,null,null,null,null,null,null,null,null,null,null,null,{"$error":"#N/A"},{"$error":"#N/A"}]
[null,{"$f":"Databáza!E121","v":0},{"$f":"VLOOKUP(B131,Materiál!B:J,2,FALSE)","v":{"$error":"#N/A"}},{"$f":"Databáza!F121","v":0},{"$f":"VLOOKUP(B131,Materiál!B:J,3,FALSE)","v":{"$error":"#N/A"}},{"$f":"VLOOKUP(B131,Materiál!B:J,5,FALSE)","v":{"$error":"#N/A"}},{"$f":"VLOOKUP(B131,Materiál!B:J,4,FALSE)","v":{"$error":"#N/A"}},null,{"$f":"VLOOKUP(B131,Materiál!B:J,9,FALSE)","v":{"$error":"#N/A"}},null,null,"-","",null,{"$f":"VLOOKUP(B131,Materiál!B:J,8,FALSE)","v":{"$error":"#N/A"}},null,null,null,null,null,null,null,null,null,null,null,null,null,null,null,null,null,null,null,null,null,null,null,null,null,null,null,null,null,null,null,null,null,null,null,null,null,null,null,null,null,null,null,null,null,null,null,null,null,null,{"$error":"#N/A"},{"$error":"#N/A"}]
[null,{"$f":"Databáza!E122","v":0},{"$f":"VLOOKUP(B132,Materiál!B:J,2,FALSE)","v":{"$error":"#N/A"}},{"$f":"Databáza!F122","v":0},{"$f":"VLOOKUP(B132,Materiál!B:J,3,FALSE)","v":{"$error":"#N/A"}},{"$f":"VLOOKUP(B132,Materiál!B:J,5,FALSE)","v":{"$error":"#N/A"}},{"$f":"VLOOKUP(B132,Materiál!B:J,4,FALSE)","v":{"$error":"#N/A"}},null,{"$f":"VLOOKUP(B132,Materiál!B:J,9,FALSE)","v":{"$error":"#N/A"}},null,null,"-","",null,{"$f":"VLOOKUP(B132,Materiál!B:J,8,FALSE)","v":{"$error":"#N/A"}},null,null,null,null,null,null,null,null,null,null,null,null,null,null,null,null,null,null,null,null,null,null,null,null,null,null,null,null,null,null,null,null,null,null,null,null,null,null,null,null,null,null,null,null,null,null,null,null,null,null,{"$error":"#N/A"},{"$error":"#N/A"}]
[null,{"$f":"Databáza!E123","v":0},{"$f":"VLOOKUP(B133,Materiál!B:J,2,FALSE)","v":{"$error":"#N/A"}},{"$f":"Databáza!F123","v":0},{"$f":"VLOOKUP(B133,Materiál!B:J,3,FALSE)","v":{"$error":"#N/A"}},{"$f":"VLOOKUP(B133,Materiál!B:J,5,FALSE)","v":{"$error":"#N/A"}},{"$f":"VLOOKUP(B133,Materiál!B:J,4,FALSE)","v":{"$error":"#N/A"}},null,{"$f":"VLOOKUP(B133,Materiál!B:J,9,FALSE)","v":{"$error":"#N/A"}},null,null,"-","",null,{"$f":"VLOOKUP(B133,Materiál!B:J,8,FALSE)","v":{"$error":"#N/A"}},null,null,null,null,null,null,null,null,null,null,null,null,null,null,null,null,null,null,null,null,null,null,null,null,null,null,null,null,null,null,null,null,null,null,null,null,null,null,null,null,null,null,null,null,null,null,null,null,null,null,{"$error":"#N/A"},{"$error":"#N/A"}]
[null,{"$f":"Databáza!E124","v":0},{"$f":"VLOOKUP(B134,Materiál!B:J,2,FALSE)","v":{"$error":"#N/A"}},{"$f":"Databáza!F124","v":0},{"$f":"VLOOKUP(B134,Materiál!B:J,3,FALSE)","v":{"$error":"#N/A"}},{"$f":"VLOOKUP(B134,Materiál!B:J,5,FALSE)","v":{"$error":"#N/A"}},{"$f":"VLOOKUP(B134,Materiál!B:J,4,FALSE)","v":{"$error":"#N/A"}},null,{"$f":"VLOOKUP(B134,Materiál!B:J,9,FALSE)","v":{"$error":"#N/A"}},null,null,"-","",null,{"$f":"VLOOKUP(B134,Materiál!B:J,8,FALSE)","v":{"$error":"#N/A"}},null,null,null,null,null,null,null,null,null,null,null,null,null,null,null,null,null,null,null,null,null,null,null,null,null,null,null,null,null,null,null,null,null,null,null,null,null,null,null,null,null,null,null,null,null,null,null,null,null,null,{"$error":"#N/A"},{"$error":"#N/A"}]
[null,{"$f":"Databáza!E125","v":0},{"$f":"VLOOKUP(B135,Materiál!B:J,2,FALSE)","v":{"$error":"#N/A"}},{"$f":"Databáza!F125","v":0},{"$f":"VLOOKUP(B135,Materiál!B:J,3,FALSE)","v":{"$error":"#N/A"}},{"$f":"VLOOKUP(B135,Materiál!B:J,5,FALSE)","v":{"$error":"#N/A"}},{"$f":"VLOOKUP(B135,Materiál!B:J,4,FALSE)","v":{"$error":"#N/A"}},null,{"$f":"VLOOKUP(B135,Materiál!B:J,9,FALSE)","v":{"$error":"#N/A"}},null,null,"-","",null,{"$f":"VLOOKUP(B135,Materiál!B:J,8,FALSE)","v":{"$error":"#N/A"}},null,null,null,null,null,null,null,null,null,null,null,null,null,null,null,null,null,null,null,null,null,null,null,null,null,null,null,null,null,null,null,null,null,null,null,null,null,null,null,null,null,null,null,null,null,null,null,null,null,null,{"$f":"IF(G135=\"\",\"-\",(E135-((E135/100)*G135)))","v":{"$error":"#N/A"}},{"$f":"IF(G135=\"\",\"-\",(E135+((E135/100)*G135)))","v":{"$error":"#N/A"}}]
[null,{"$f":"Databáza!E126","v":0},{"$f":"VLOOKUP(B136,Materiál!B:J,2,FALSE)","v":{"$error":"#N/A"}},{"$f":"Databáza!F126","v":0},{"$f":"VLOOKUP(B136,Materiál!B:J,3,FALSE)","v":{"$error":"#N/A"}},{"$f":"VLOOKUP(B136,Materiál!B:J,5,FALSE)","v":{"$error":"#N/A"}},{"$f":"VLOOKUP(B136,Materiál!B:J,4,FALSE)","v":{"$error":"#N/A"}},null,{"$f":"VLOOKUP(B136,Materiál!B:J,9,FALSE)","v":{"$error":"#N/A"}},null,null,"-","",null,{"$f":"VLOOKUP(B136,Materiál!B:J,8,FALSE)","v":{"$error":"#N/A"}},null,null,null,null,null,null,null,null,null,null,null,null,null,null,null,null,null,null,null,null,null,null,null,null,null,null,null,null,null,null,null,null,null,null,null,null,null,null,null,null,null,null,null,null,null,null,null,null,null,null,{"$error":"#N/A"},{"$error":"#N/A"}]
[null,{"$f":"Databáza!E127","v":0},{"$f":"VLOOKUP(B137,Materiál!B:J,2,FALSE)","v":{"$error":"#N/A"}},{"$f":"Databáza!F127","v":0},{"$f":"VLOOKUP(B137,Materiál!B:J,3,FALSE)","v":{"$error":"#N/A"}},{"$f":"VLOOKUP(B137,Materiál!B:J,5,FALSE)","v":{"$error":"#N/A"}},{"$f":"VLOOKUP(B137,Materiál!B:J,4,FALSE)","v":{"$error":"#N/A"}},null,{"$f":"VLOOKUP(B137,Materiál!B:J,9,FALSE)","v":{"$error":"#N/A"}},null,null,"-","",null,{"$f":"VLOOKUP(B137,Materiál!B:J,8,FALSE)","v":{"$error":"#N/A"}},null,null,null,null,null,null,null,null,null,null,null,null,null,null,null,null,null,null,null,null,null,null,null,null,null,null,null,null,null,null,null,null,null,null,null,null,null,null,null,null,null,null,null,null,null,null,null,null,null,null,{"$error":"#N/A"},{"$error":"#N/A"}]
[null,{"$f":"Databáza!E128","v":0},{"$f":"VLOOKUP(B138,Materiál!B:J,2,FALSE)","v":{"$error":"#N/A"}},{"$f":"Databáza!F128","v":0},{"$f":"VLOOKUP(B138,Materiál!B:J,3,FALSE)","v":{"$error":"#N/A"}},{"$f":"VLOOKUP(B138,Materiál!B:J,5,FALSE)","v":{"$error":"#N/A"}},{"$f":"VLOOKUP(B138,Materiál!B:J,4,FALSE)","v":{"$error":"#N/A"}},null,{"$f":"VLOOKUP(B138,Materiál!B:J,9,FALSE)","v":{"$error":"#N/A"}},null,null,"-","",null,{"$f":"VLOOKUP(B138,Materiál!B:J,8,FALSE)","v":{"$error":"#N/A"}},null,null,null,null,null,null,null,null,null,null,null,null,null,null,null,null,null,null,null,null,null,null,null,null,null,null,null,null,null,null,null,null,null,null,null,null,null,null,null,null,null,null,null,null,null,null,null,null,null,null,{"$error":"#N/A"},{"$error":"#N/A"}]
[null,{"$f":"Databáza!E129","v":0},{"$f":"VLOOKUP(B139,Materiál!B:J,2,FALSE)","v":{"$error":"#N/A"}},{"$f":"Databáza!F129","v":0},{"$f":"VLOOKUP(B139,Materiál!B:J,3,FALSE)","v":{"$error":"#N/A"}},{"$f":"VLOOKUP(B139,Materiál!B:J,5,FALSE)","v":{"$error":"#N/A"}},{"$f":"VLOOKUP(B139,Materiál!B:J,4,FALSE)","v":{"$error":"#N/A"}},null,{"$f":"VLOOKUP(B139,Materiál!B:J,9,FALSE)","v":{"$error":"#N/A"}},null,null,"-","",null,{"$f":"VLOOKUP(B139,Materiál!B:J,8,FALSE)","v":{"$error":"#N/A"}},null,null,null,null,null,null,null,null,null,null,null,null,null,null,null,null,null,null,null,null,null,null,null,null,null,null,null,null,null,null,null,null,null,null,null,null,null,null,null,null,null,null,null,null,null,null,null,null,null,null,{"$error":"#N/A"},{"$error":"#N/A"}]
[null,{"$f":"Databáza!E130","v":0},{"$f":"VLOOKUP(B140,Materiál!B:J,2,FALSE)","v":{"$error":"#N/A"}},{"$f":"Databáza!F130","v":0},{"$f":"VLOOKUP(B140,Materiál!B:J,3,FALSE)","v":{"$error":"#N/A"}},{"$f":"VLOOKUP(B140,Materiál!B:J,5,FALSE)","v":{"$error":"#N/A"}},{"$f":"VLOOKUP(B140,Materiál!B:J,4,FALSE)","v":{"$error":"#N/A"}},null,{"$f":"VLOOKUP(B140,Materiál!B:J,9,FALSE)","v":{"$error":"#N/A"}},null,null,"-","",null,{"$f":"VLOOKUP(B140,Materiál!B:J,8,FALSE)","v":{"$error":"#N/A"}},null,null,null,null,null,null,null,null,null,null,null,null,null,null,null,null,null,null,null,null,null,null,null,null,null,null,null,null,null,null,null,null,null,null,null,null,null,null,null,null,null,null,null,null,null,null,null,null,null,null,{"$error":"#N/A"},{"$error":"#N/A"}]
[null,{"$f":"Databáza!E131","v":0},{"$f":"VLOOKUP(B141,Materiál!B:J,2,FALSE)","v":{"$error":"#N/A"}},{"$f":"Databáza!F131","v":0},{"$f":"VLOOKUP(B141,Materiál!B:J,3,FALSE)","v":{"$error":"#N/A"}},{"$f":"VLOOKUP(B141,Materiál!B:J,5,FALSE)","v":{"$error":"#N/A"}},{"$f":"VLOOKUP(B141,Materiál!B:J,4,FALSE)","v":{"$error":"#N/A"}},null,{"$f":"VLOOKUP(B141,Materiál!B:J,9,FALSE)","v":{"$error":"#N/A"}},null,null,"-","",null,{"$f":"VLOOKUP(B141,Materiál!B:J,8,FALSE)","v":{"$error":"#N/A"}},null,null,null,null,null,null,null,null,null,null,null,null,null,null,null,null,null,null,null,null,null,null,null,null,null,null,null,null,null,null,null,null,null,null,null,null,null,null,null,null,null,null,null,null,null,null,null,null,null,null,{"$error":"#N/A"},{"$error":"#N/A"}]
[null,{"$f":"Databáza!E132","v":0},{"$f":"VLOOKUP(B142,Materiál!B:J,2,FALSE)","v":{"$error":"#N/A"}},{"$f":"Databáza!F132","v":0},{"$f":"VLOOKUP(B142,Materiál!B:J,3,FALSE)","v":{"$error":"#N/A"}},{"$f":"VLOOKUP(B142,Materiál!B:J,5,FALSE)","v":{"$error":"#N/A"}},{"$f":"VLOOKUP(B142,Materiál!B:J,4,FALSE)","v":{"$error":"#N/A"}},null,{"$f":"VLOOKUP(B142,Materiál!B:J,9,FALSE)","v":{"$error":"#N/A"}},null,null,{"$f":"IF(K142=1,\"UVOĽNENÉ\",IF(K142=2,\"UPOZORNENIE\",IF(K142=3,\"UPOZOR. / NÁKL.\",IF(K142=4,\"REKLAMÁCIA\",\"-\"))))","v":"-"},{"$f":"IF(H142=(\"\"),\"\",\"Brišová\")","v":""},null,{"$f":"VLOOKUP(B142,Materiál!B:J,8,FALSE)","v":{"$error":"#N/A"}},null,null,null,null,null,null,null,null,null,null,null,null,null,null,null,null,null,null,null,null,null,null,null,null,null,null,null,null,null,null,null,null,null,null,null,null,null,null,null,null,null,null,null,null,null,null,null,null,null,null,{"$error":"#N/A"},{"$error":"#N/A"}]
[null,{"$f":"Databáza!E133","v":0},{"$f":"VLOOKUP(B143,Materiál!B:J,2,FALSE)","v":{"$error":"#N/A"}},{"$f":"Databáza!F133","v":0},{"$f":"VLOOKUP(B143,Materiál!B:J,3,FALSE)","v":{"$error":"#N/A"}},{"$f":"VLOOKUP(B143,Materiál!B:J,5,FALSE)","v":{"$error":"#N/A"}},{"$f":"VLOOKUP(B143,Materiál!B:J,4,FALSE)","v":{"$error":"#N/A"}},null,{"$f":"VLOOKUP(B143,Materiál!B:J,9,FALSE)","v":{"$error":"#N/A"}},null,null,"-","",null,{"$f":"VLOOKUP(B143,Materiál!B:J,8,FALSE)","v":{"$error":"#N/A"}},null,null,null,null,null,null,null,null,null,null,null,null,null,null,null,null,null,null,null,null,null,null,null,null,null,null,null,null,null,null,null,null,null,null,null,null,null,null,null,null,null,null,null,null,null,null,null,null,null,null,{"$error":"#N/A"},{"$error":"#N/A"}]
[null,{"$f":"Databáza!E134","v":0},{"$f":"VLOOKUP(B144,Materiál!B:J,2,FALSE)","v":{"$error":"#N/A"}},{"$f":"Databáza!F134","v":0},{"$f":"VLOOKUP(B144,Materiál!B:J,3,FALSE)","v":{"$error":"#N/A"}},{"$f":"VLOOKUP(B144,Materiál!B:J,5,FALSE)","v":{"$error":"#N/A"}},{"$f":"VLOOKUP(B144,Materiál!B:J,4,FALSE)","v":{"$error":"#N/A"}},null,{"$f":"VLOOKUP(B144,Materiál!B:J,9,FALSE)","v":{"$error":"#N/A"}},null,null,"-","",null,{"$f":"VLOOKUP(B144,Materiál!B:J,8,FALSE)","v":{"$error":"#N/A"}},null,null,null,null,null,null,null,null,null,null,null,null,null,null,null,null,null,null,null,null,null,null,null,null,null,null,null,null,null,null,null,null,null,null,null,null,null,null,null,null,null,null,null,null,null,null,null,null,null,null,{"$error":"#N/A"},{"$error":"#N/A"}]
[null,{"$f":"Databáza!E135","v":0},{"$f":"VLOOKUP(B145,Materiál!B:J,2,FALSE)","v":{"$error":"#N/A"}},{"$f":"Databáza!F135","v":0},{"$f":"VLOOKUP(B145,Materiál!B:J,3,FALSE)","v":{"$error":"#N/A"}},{"$f":"VLOOKUP(B145,Materiál!B:J,5,FALSE)","v":{"$error":"#N/A"}},{"$f":"VLOOKUP(B145,Materiál!B:J,4,FALSE)","v":{"$error":"#N/A"}},null,{"$f":"VLOOKUP(B145,Materiál!B:J,9,FALSE)","v":{"$error":"#N/A"}},null,null,"-","",null,{"$f":"VLOOKUP(B145,Materiál!B:J,8,FALSE)","v":{"$error":"#N/A"}},null,null,null,null,null,null,null,null,null,null,null,null,null,null,null,null,null,null,null,null,null,null,null,null,null,null,null,null,null,null,null,null,null,null,null,null,null,null,null,null,null,null,null,null,null,null,null,null,null,null,{"$error":"#N/A"},{"$error":"#N/A"}]
[null,{"$f":"Databáza!E136","v":0},{"$f":"VLOOKUP(B146,Materiál!B:J,2,FALSE)","v":{"$error":"#N/A"}},{"$f":"Databáza!F136","v":0},{"$f":"VLOOKUP(B146,Materiál!B:J,3,FALSE)","v":{"$error":"#N/A"}},{"$f":"VLOOKUP(B146,Materiál!B:J,5,FALSE)","v":{"$error":"#N/A"}},{"$f":"VLOOKUP(B146,Materiál!B:J,4,FALSE)","v":{"$error":"#N/A"}},null,{"$f":"VLOOKUP(B146,Materiál!B:J,9,FALSE)","v":{"$error":"#N/A"}},null,null,"-","",null,{"$f":"VLOOKUP(B146,Materiál!B:J,8,FALSE)","v":{"$error":"#N/A"}},null,null,null,null,null,null,null,null,null,null,null,null,null,null,null,null,null,null,null,null,null,null,null,null,null,null,null,null,null,null,null,null,null,null,null,null,null,null,null,null,null,null,null,null,null,null,null,null,null,null,{"$error":"#N/A"},{"$error":"#N/A"}]
[null,{"$f":"Databáza!E137","v":0},{"$f":"VLOOKUP(B147,Materiál!B:J,2,FALSE)","v":{"$error":"#N/A"}},{"$f":"Databáza!F137","v":0},{"$f":"VLOOKUP(B147,Materiál!B:J,3,FALSE)","v":{"$error":"#N/A"}},{"$f":"VLOOKUP(B147,Materiál!B:J,5,FALSE)","v":{"$error":"#N/A"}},{"$f":"VLOOKUP(B147,Materiál!B:J,4,FALSE)","v":{"$error":"#N/A"}},null,{"$f":"VLOOKUP(B147,Materiál!B:J,9,FALSE)","v":{"$error":"#N/A"}},null,null,"-","",null,{"$f":"VLOOKUP(B147,Materiál!B:J,8,FALSE)","v":{"$error":"#N/A"}},null,null,null,null,null,null,null,null,null,null,null,null,null,null,null,null,null,null,null,null,null,null,null,null,null,null,null,null,null,null,null,null,null,null,null,null,null,null,null,null,null,null,null,null,null,null,null,null,null,null,{"$error":"#N/A"},{"$error":"#N/A"}]
[null,{"$f":"Databáza!E138","v":0},{"$f":"VLOOKUP(B148,Materiál!B:J,2,FALSE)","v":{"$error":"#N/A"}},{"$f":"Databáza!F138","v":0},{"$f":"VLOOKUP(B148,Materiál!B:J,3,FALSE)","v":{"$error":"#N/A"}},{"$f":"VLOOKUP(B148,Materiál!B:J,5,FALSE)","v":{"$error":"#N/A"}},{"$f":"VLOOKUP(B148,Materiál!B:J,4,FALSE)","v":{"$error":"#N/A"}},null,{"$f":"VLOOKUP(B148,Materiál!B:J,9,FALSE)","v":{"$error":"#N/A"}},null,null,"-","",null,{"$f":"VLOOKUP(B148,Materiál!B:J,8,FALSE)","v":{"$error":"#N/A"}},null,null,null,null,null,null,null,null,null,null,null,null,null,null,null,null,null,null,null,null,null,null,null,null,null,null,null,null,null,null,null,null,null,null,null,null,null,null,null,null,null,null,null,null,null,null,null,null,null,null,{"$error":"#N/A"},{"$error":"#N/A"}]
[null,{"$f":"Databáza!E139","v":0},{"$f":"VLOOKUP(B149,Materiál!B:J,2,FALSE)","v":{"$error":"#N/A"}},{"$f":"Databáza!F139","v":0},{"$f":"VLOOKUP(B149,Materiál!B:J,3,FALSE)","v":{"$error":"#N/A"}},{"$f":"VLOOKUP(B149,Materiál!B:J,5,FALSE)","v":{"$error":"#N/A"}},{"$f":"VLOOKUP(B149,Materiál!B:J,4,FALSE)","v":{"$error":"#N/A"}},null,{"$f":"VLOOKUP(B149,Materiál!B:J,9,FALSE)","v":{"$error":"#N/A"}},null,null,"-","",null,{"$f":"VLOOKUP(B149,Materiál!B:J,8,FALSE)","v":{"$error":"#N/A"}},null,null,null,null,null,null,null,null,null,null,null,null,null,null,null,null,null,null,null,null,null,null,null,null,null,null,null,null,null,null,null,null,null,null,null,null,null,null,null,null,null,null,null,null,null,null,null,null,null,null,{"$error":"#N/A"},{"$error":"#N/A"}]
[null,{"$f":"Databáza!E140","v":0},{"$f":"VLOOKUP(B150,Materiál!B:J,2,FALSE)","v":{"$error":"#N/A"}},{"$f":"Databáza!F140","v":0},{"$f":"VLOOKUP(B150,Materiál!B:J,3,FALSE)","v":{"$error":"#N/A"}},{"$f":"VLOOKUP(B150,Materiál!B:J,5,FALSE)","v":{"$error":"#N/A"}},{"$f":"VLOOKUP(B150,Materiál!B:J,4,FALSE)","v":{"$error":"#N/A"}},null,{"$f":"VLOOKUP(B150,Materiál!B:J,9,FALSE)","v":{"$error":"#N/A"}},null,null,"-","",null,{"$f":"VLOOKUP(B150,Materiál!B:J,8,FALSE)","v":{"$error":"#N/A"}},null,null,null,null,null,null,null,null,null,null,null,null,null,null,null,null,null,null,null,null,null,null,null,null,null,null,null,null,null,null,null,null,null,null,null,null,null,null,null,null,null,null,null,null,null,null,null,null,null,null,{"$error":"#N/A"},{"$error":"#N/A"}]
[null,{"$f":"Databáza!E141","v":0},{"$f":"VLOOKUP(B151,Materiál!B:J,2,FALSE)","v":{"$error":"#N/A"}},{"$f":"Databáza!F141","v":0},{"$f":"VLOOKUP(B151,Materiál!B:J,3,FALSE)","v":{"$error":"#N/A"}},{"$f":"VLOOKUP(B151,Materiál!B:J,5,FALSE)","v":{"$error":"#N/A"}},{"$f":"VLOOKUP(B151,Materiál!B:J,4,FALSE)","v":{"$error":"#N/A"}},null,{"$f":"VLOOKUP(B151,Materiál!B:J,9,FALSE)","v":{"$error":"#N/A"}},null,null,"-","",null,{"$f":"VLOOKUP(B151,Materiál!B:J,8,FALSE)","v":{"$error":"#N/A"}},null,null,null,null,null,null,null,null,null,null,null,null,null,null,null,null,null,null,null,null,null,null,null,null,null,null,null,null,null,null,null,null,null,null,null,null,null,null,null,null,null,null,null,null,null,null,null,null,null,null,{"$error":"#N/A"},{"$error":"#N/A"}]
[null,{"$f":"Databáza!E142","v":0},{"$f":"VLOOKUP(B152,Materiál!B:J,2,FALSE)","v":{"$error":"#N/A"}},{"$f":"Databáza!F142","v":0},{"$f":"VLOOKUP(B152,Materiál!B:J,3,FALSE)","v":{"$error":"#N/A"}},{"$f":"VLOOKUP(B152,Materiál!B:J,5,FALSE)","v":{"$error":"#N/A"}},{"$f":"VLOOKUP(B152,Materiál!B:J,4,FALSE)","v":{"$error":"#N/A"}},null,{"$f":"VLOOKUP(B152,Materiál!B:J,9,FALSE)","v":{"$error":"#N/A"}},null,null,"-","",null,{"$f":"VLOOKUP(B152,Materiál!B:J,8,FALSE)","v":{"$error":"#N/A"}},null,null,null,null,null,null,null,null,null,null,null,null,null,null,null,null,null,null,null,null,null,null,null,null,null,null,null,null,null,null,null,null,null,null,null,null,null,null,null,null,null,null,null,null,null,null,null,null,null,null,{"$error":"#N/A"},{"$error":"#N/A"}]
[null,{"$f":"Databáza!E143","v":0},{"$f":"VLOOKUP(B153,Materiál!B:J,2,FALSE)","v":{"$error":"#N/A"}},{"$f":"Databáza!F143","v":0},{"$f":"VLOOKUP(B153,Materiál!B:J,3,FALSE)","v":{"$error":"#N/A"}},{"$f":"VLOOKUP(B153,Materiál!B:J,5,FALSE)","v":{"$error":"#N/A"}},{"$f":"VLOOKUP(B153,Materiál!B:J,4,FALSE)","v":{"$error":"#N/A"}},null,{"$f":"VLOOKUP(B153,Materiál!B:J,9,FALSE)","v":{"$error":"#N/A"}},null,null,"-","",null,{"$f":"VLOOKUP(B153,Materiál!B:J,8,FALSE)","v":{"$error":"#N/A"}},null,null,null,null,null,null,null,null,null,null,null,null,null,null,null,null,null,null,null,null,null,null,null,null,null,null,null,null,null,null,null,null,null,null,null,null,null,null,null,null,null,null,null,null,null,null,null,null,null,null,{"$error":"#N/A"},{"$error":"#N/A"}]
[null,{"$f":"Databáza!E144","v":0},{"$f":"VLOOKUP(B154,Materiál!B:J,2,FALSE)","v":{"$error":"#N/A"}},{"$f":"Databáza!F144","v":0},{"$f":"VLOOKUP(B154,Materiál!B:J,3,FALSE)","v":{"$error":"#N/A"}},{"$f":"VLOOKUP(B154,Materiál!B:J,5,FALSE)","v":{"$error":"#N/A"}},{"$f":"VLOOKUP(B154,Materiál!B:J,4,FALSE)","v":{"$error":"#N/A"}},null,{"$f":"VLOOKUP(B154,Materiál!B:J,9,FALSE)","v":{"$error":"#N/A"}},null,null,"-","",null,{"$f":"VLOOKUP(B154,Materiál!B:J,8,FALSE)","v":{"$error":"#N/A"}},null,null,null,null,null,null,null,null,null,null,null,null,null,null,null,null,null,null,null,null,null,null,null,null,null,null,null,null,null,null,null,null,null,null,null,null,null,null,null,null,null,null,null,null,null,null,null,null,null,null,{"$error":"#N/A"},{"$error":"#N/A"}]
[null,{"$f":"Databáza!E145","v":0},{"$f":"VLOOKUP(B155,Materiál!B:J,2,FALSE)","v":{"$error":"#N/A"}},{"$f":"Databáza!F145","v":0},{"$f":"VLOOKUP(B155,Materiál!B:J,3,FALSE)","v":{"$error":"#N/A"}},{"$f":"VLOOKUP(B155,Materiál!B:J,5,FALSE)","v":{"$error":"#N/A"}},{"$f":"VLOOKUP(B155,Materiál!B:J,4,FALSE)","v":{"$error":"#N/A"}},null,{"$f":"VLOOKUP(B155,Materiál!B:J,9,FALSE)","v":{"$error":"#N/A"}},null,null,"-","",null,{"$f":"VLOOKUP(B155,Materiál!B:J,8,FALSE)","v":{"$error":"#N/A"}},null,null,null,null,null,null,null,null,null,null,null,null,null,null,null,null,null,null,null,null,null,null,null,null,null,null,null,null,null,null,null,null,null,null,null,null,null,null,null,null,null,null,null,null,null,null,null,null,null,null,{"$error":"#N/A"},{"$error":"#N/A"}]
[null,{"$f":"Databáza!E146","v":0},{"$f":"VLOOKUP(B156,Materiál!B:J,2,FALSE)","v":{"$error":"#N/A"}},{"$f":"Databáza!F146","v":0},{"$f":"VLOOKUP(B156,Materiál!B:J,3,FALSE)","v":{"$error":"#N/A"}},{"$f":"VLOOKUP(B156,Materiál!B:J,5,FALSE)","v":{"$error":"#N/A"}},{"$f":"VLOOKUP(B156,Materiál!B:J,4,FALSE)","v":{"$error":"#N/A"}},null,{"$f":"VLOOKUP(B156,Materiál!B:J,9,FALSE)","v":{"$error":"#N/A"}},null,null,"-","",null,{"$f":"VLOOKUP(B156,Materiál!B:J,8,FALSE)","v":{"$error":"#N/A"}},null,null,null,null,null,null,null,null,null,null,null,null,null,null,null,null,null,null,null,null,null,null,null,null,null,null,null,null,null,null,null,null,null,null,null,null,null,null,null,null,null,null,null,null,null,null,null,null,null,null,{"$error":"#N/A"},{"$error":"#N/A"}]
[null,{"$f":"Databáza!E147","v":0},{"$f":"VLOOKUP(B157,Materiál!B:J,2,FALSE)","v":{"$error":"#N/A"}},{"$f":"Databáza!F147","v":0},{"$f":"VLOOKUP(B157,Materiál!B:J,3,FALSE)","v":{"$error":"#N/A"}},{"$f":"VLOOKUP(B157,Materiál!B:J,5,FALSE)","v":{"$error":"#N/A"}},{"$f":"VLOOKUP(B157,Materiál!B:J,4,FALSE)","v":{"$error":"#N/A"}},null,{"$f":"VLOOKUP(B157,Materiál!B:J,9,FALSE)","v":{"$error":"#N/A"}},null,null,"-","",null,{"$f":"VLOOKUP(B157,Materiál!B:J,8,FALSE)","v":{"$error":"#N/A"}},null,null,null,null,null,null,null,null,null,null,null,null,null,null,null,null,null,null,null,null,null,null,null,null,null,null,null,null,null,null,null,null,null,null,null,null,null,null,null,null,null,null,null,null,null,null,null,null,null,null,{"$error":"#N/A"},{"$error":"#N/A"}]
[null,{"$f":"Databáza!E148","v":0},{"$f":"VLOOKUP(B158,Materiál!B:J,2,FALSE)","v":{"$error":"#N/A"}},{"$f":"Databáza!F148","v":0},{"$f":"VLOOKUP(B158,Materiál!B:J,3,FALSE)","v":{"$error":"#N/A"}},{"$f":"VLOOKUP(B158,Materiál!B:J,5,FALSE)","v":{"$error":"#N/A"}},{"$f":"VLOOKUP(B158,Materiál!B:J,4,FALSE)","v":{"$error":"#N/A"}},null,{"$f":"VLOOKUP(B158,Materiál!B:J,9,FALSE)","v":{"$error":"#N/A"}},null,null,"-","",null,{"$f":"VLOOKUP(B158,Materiál!B:J,8,FALSE)","v":{"$error":"#N/A"}},null,null,null,null,null,null,null,null,null,null,null,null,null,null,null,null,null,null,null,null,null,null,null,null,null,null,null,null,null,null,null,null,null,null,null,null,null,null,null,null,null,null,null,null,null,null,null,null,null,null,{"$error":"#N/A"},{"$error":"#N/A"}]
[null,{"$f":"Databáza!E149","v":0},{"$f":"VLOOKUP(B159,Materiál!B:J,2,FALSE)","v":{"$error":"#N/A"}},{"$f":"Databáza!F149","v":0},{"$f":"VLOOKUP(B159,Materiál!B:J,3,FALSE)","v":{"$error":"#N/A"}},{"$f":"VLOOKUP(B159,Materiál!B:J,5,FALSE)","v":{"$error":"#N/A"}},{"$f":"VLOOKUP(B159,Materiál!B:J,4,FALSE)","v":{"$error":"#N/A"}},null,{"$f":"VLOOKUP(B159,Materiál!B:J,9,FALSE)","v":{"$error":"#N/A"}},null,null,"-","",null,{"$f":"VLOOKUP(B159,Materiál!B:J,8,FALSE)","v":{"$error":"#N/A"}},null,null,null,null,null,null,null,null,null,null,null,null,null,null,null,null,null,null,null,null,null,null,null,null,null,null,null,null,null,null,null,null,null,null,null,null,null,null,null,null,null,null,null,null,null,null,null,null,null,null,{"$error":"#N/A"},{"$error":"#N/A"}]
[null,{"$f":"Databáza!E150","v":0},{"$f":"VLOOKUP(B160,Materiál!B:J,2,FALSE)","v":{"$error":"#N/A"}},{"$f":"Databáza!F150","v":0},{"$f":"VLOOKUP(B160,Materiál!B:J,3,FALSE)","v":{"$error":"#N/A"}},{"$f":"VLOOKUP(B160,Materiál!B:J,5,FALSE)","v":{"$error":"#N/A"}},{"$f":"VLOOKUP(B160,Materiál!B:J,4,FALSE)","v":{"$error":"#N/A"}},null,{"$f":"VLOOKUP(B160,Materiál!B:J,9,FALSE)","v":{"$error":"#N/A"}},null,null,"-","",null,{"$f":"VLOOKUP(B160,Materiál!B:J,8,FALSE)","v":{"$error":"#N/A"}},null,null,null,null,null,null,null,null,null,null,null,null,null,null,null,null,null,null,null,null,null,null,null,null,null,null,null,null,null,null,null,null,null,null,null,null,null,null,null,null,null,null,null,null,null,null,null,null,null,null,{"$error":"#N/A"},{"$error":"#N/A"}]
[null,{"$f":"Databáza!E151","v":0},{"$f":"VLOOKUP(B161,Materiál!B:J,2,FALSE)","v":{"$error":"#N/A"}},{"$f":"Databáza!F151","v":0},{"$f":"VLOOKUP(B161,Materiál!B:J,3,FALSE)","v":{"$error":"#N/A"}},{"$f":"VLOOKUP(B161,Materiál!B:J,5,FALSE)","v":{"$error":"#N/A"}},{"$f":"VLOOKUP(B161,Materiál!B:J,4,FALSE)","v":{"$error":"#N/A"}},null,{"$f":"VLOOKUP(B161,Materiál!B:J,9,FALSE)","v":{"$error":"#N/A"}},null,null,"-","",null,{"$f":"VLOOKUP(B161,Materiál!B:J,8,FALSE)","v":{"$error":"#N/A"}},null,null,null,null,null,null,null,null,null,null,null,null,null,null,null,null,null,null,null,null,null,null,null,null,null,null,null,null,null,null,null,null,null,null,null,null,null,null,null,null,null,null,null,null,null,null,null,null,null,null,{"$error":"#N/A"},{"$error":"#N/A"}]
[null,{"$f":"Databáza!E152","v":0},{"$f":"VLOOKUP(B162,Materiál!B:J,2,FALSE)","v":{"$error":"#N/A"}},{"$f":"Databáza!F152","v":0},{"$f":"VLOOKUP(B162,Materiál!B:J,3,FALSE)","v":{"$error":"#N/A"}},{"$f":"VLOOKUP(B162,Materiál!B:J,5,FALSE)","v":{"$error":"#N/A"}},{"$f":"VLOOKUP(B162,Materiál!B:J,4,FALSE)","v":{"$error":"#N/A"}},null,{"$f":"VLOOKUP(B162,Materiál!B:J,9,FALSE)","v":{"$error":"#N/A"}},null,null,"-","",null,{"$f":"VLOOKUP(B162,Materiál!B:J,8,FALSE)","v":{"$error":"#N/A"}},null,null,null,null,null,null,null,null,null,null,null,null,null,null,null,null,null,null,null,null,null,null,null,null,null,null,null,null,null,null,null,null,null,null,null,null,null,null,null,null,null,null,null,null,null,null,null,null,null,null,{"$error":"#N/A"},{"$error":"#N/A"}]
[null,{"$f":"Databáza!E153","v":0},{"$f":"VLOOKUP(B163,Materiál!B:J,2,FALSE)","v":{"$error":"#N/A"}},{"$f":"Databáza!F153","v":0},{"$f":"VLOOKUP(B163,Materiál!B:J,3,FALSE)","v":{"$error":"#N/A"}},{"$f":"VLOOKUP(B163,Materiál!B:J,5,FALSE)","v":{"$error":"#N/A"}},{"$f":"VLOOKUP(B163,Materiál!B:J,4,FALSE)","v":{"$error":"#N/A"}},null,{"$f":"VLOOKUP(B163,Materiál!B:J,9,FALSE)","v":{"$error":"#N/A"}},null,null,"-","",null,{"$f":"VLOOKUP(B163,Materiál!B:J,8,FALSE)","v":{"$error":"#N/A"}},null,null,null,null,null,null,null,null,null,null,null,null,null,null,null,null,null,null,null,null,null,null,null,null,null,null,null,null,null,null,null,null,null,null,null,null,null,null,null,null,null,null,null,null,null,null,null,null,null,null,{"$error":"#N/A"},{"$error":"#N/A"}]
[null,{"$f":"Databáza!E154","v":0},{"$f":"VLOOKUP(B164,Materiál!B:J,2,FALSE)","v":{"$error":"#N/A"}},{"$f":"Databáza!F154","v":0},{"$f":"VLOOKUP(B164,Materiál!B:J,3,FALSE)","v":{"$error":"#N/A"}},{"$f":"VLOOKUP(B164,Materiál!B:J,5,FALSE)","v":{"$error":"#N/A"}},{"$f":"VLOOKUP(B164,Materiál!B:J,4,FALSE)","v":{"$error":"#N/A"}},null,{"$f":"VLOOKUP(B164,Materiál!B:J,9,FALSE)","v":{"$error":"#N/A"}},null,null,"-","",null,{"$f":"VLOOKUP(B164,Materiál!B:J,8,FALSE)","v":{"$error":"#N/A"}},null,null,null,null,null,null,null,null,null,null,null,null,null,null,null,null,null,null,null,null,null,null,null,null,null,null,null,null,null,null,null,null,null,null,null,null,null,null,null,null,null,null,null,null,null,null,null,null,null,null,{"$error":"#N/A"},{"$error":"#N/A"}]
[null,{"$f":"Databáza!E155","v":0},{"$f":"VLOOKUP(B165,Materiál!B:J,2,FALSE)","v":{"$error":"#N/A"}},{"$f":"Databáza!F155","v":0},{"$f":"VLOOKUP(B165,Materiál!B:J,3,FALSE)","v":{"$error":"#N/A"}},{"$f":"VLOOKUP(B165,Materiál!B:J,5,FALSE)","v":{"$error":"#N/A"}},{"$f":"VLOOKUP(B165,Materiál!B:J,4,FALSE)","v":{"$error":"#N/A"}},null,{"$f":"VLOOKUP(B165,Materiál!B:J,9,FALSE)","v":{"$error":"#N/A"}},null,null,"-","",null,{"$f":"VLOOKUP(B165,Materiál!B:J,8,FALSE)","v":{"$error":"#N/A"}},null,null,null,null,null,null,null,null,null,null,null,null,null,null,null,null,null,null,null,null,null,null,null,null,null,null,null,null,null,null,null,null,null,null,null,null,null,null,null,null,null,null,null,null,null,null,null,null,null,null,{"$error":"#N/A"},{"$error":"#N/A"}]
[null,{"$f":"Databáza!E156","v":0},{"$f":"VLOOKUP(B166,Materiál!B:J,2,FALSE)","v":{"$error":"#N/A"}},{"$f":"Databáza!F156","v":0},{"$f":"VLOOKUP(B166,Materiál!B:J,3,FALSE)","v":{"$error":"#N/A"}},{"$f":"VLOOKUP(B166,Materiál!B:J,5,FALSE)","v":{"$error":"#N/A"}},{"$f":"VLOOKUP(B166,Materiál!B:J,4,FALSE)","v":{"$error":"#N/A"}},null,{"$f":"VLOOKUP(B166,Materiál!B:J,9,FALSE)","v":{"$error":"#N/A"}},null,null,"-","",null,{"$f":"VLOOKUP(B166,Materiál!B:J,8,FALSE)","v":{"$error":"#N/A"}},null,null,null,null,null,null,null,null,null,null,null,null,null,null,null,null,null,null,null,null,null,null,null,null,null,null,null,null,null,null,null,null,null,null,null,null,null,null,null,null,null,null,null,null,null,null,null,null,null,null,{"$error":"#N/A"},{"$error":"#N/A"}]
[null,{"$f":"Databáza!E157","v":0},{"$f":"VLOOKUP(B167,Materiál!B:J,2,FALSE)","v":{"$error":"#N/A"}},{"$f":"Databáza!F157","v":0},{"$f":"VLOOKUP(B167,Materiál!B:J,3,FALSE)","v":{"$error":"#N/A"}},{"$f":"VLOOKUP(B167,Materiál!B:J,5,FALSE)","v":{"$error":"#N/A"}},{"$f":"VLOOKUP(B167,Materiál!B:J,4,FALSE)","v":{"$error":"#N/A"}},null,{"$f":"VLOOKUP(B167,Materiál!B:J,9,FALSE)","v":{"$error":"#N/A"}},null,null,"-","",null,{"$f":"VLOOKUP(B167,Materiál!B:J,8,FALSE)","v":{"$error":"#N/A"}},null,null,null,null,null,null,null,null,null,null,null,null,null,null,null,null,null,null,null,null,null,null,null,null,null,null,null,null,null,null,null,null,null,null,null,null,null,null,null,null,null,null,null,null,null,null,null,null,null,null,{"$error":"#N/A"},{"$error":"#N/A"}]
[null,{"$f":"Databáza!E158","v":0},{"$f":"VLOOKUP(B168,Materiál!B:J,2,FALSE)","v":{"$error":"#N/A"}},{"$f":"Databáza!F158","v":0},{"$f":"VLOOKUP(B168,Materiál!B:J,3,FALSE)","v":{"$error":"#N/A"}},{"$f":"VLOOKUP(B168,Materiál!B:J,5,FALSE)","v":{"$error":"#N/A"}},{"$f":"VLOOKUP(B168,Materiál!B:J,4,FALSE)","v":{"$error":"#N/A"}},null,{"$f":"VLOOKUP(B168,Materiál!B:J,9,FALSE)","v":{"$error":"#N/A"}},null,null,"-","",null,{"$f":"VLOOKUP(B168,Materiál!B:J,8,FALSE)","v":{"$error":"#N/A"}},null,null,null,null,null,null,null,null,null,null,null,null,null,null,null,null,null,null,null,null,null,null,null,null,null,null,null,null,null,null,null,null,null,null,null,null,null,null,null,null,null,null,null,null,null,null,null,null,null,null,{"$error":"#N/A"},{"$error":"#N/A"}]
[null,{"$f":"Databáza!E159","v":0},{"$f":"VLOOKUP(B169,Materiál!B:J,2,FALSE)","v":{"$error":"#N/A"}},{"$f":"Databáza!F159","v":0},{"$f":"VLOOKUP(B169,Materiál!B:J,3,FALSE)","v":{"$error":"#N/A"}},{"$f":"VLOOKUP(B169,Materiál!B:J,5,FALSE)","v":{"$error":"#N/A"}},{"$f":"VLOOKUP(B169,Materiál!B:J,4,FALSE)","v":{"$error":"#N/A"}},null,{"$f":"VLOOKUP(B169,Materiál!B:J,9,FALSE)","v":{"$error":"#N/A"}},null,null,"-","",null,{"$f":"VLOOKUP(B169,Materiál!B:J,8,FALSE)","v":{"$error":"#N/A"}},null,null,null,null,null,null,null,null,null,null,null,null,null,null,null,null,null,null,null,null,null,null,null,null,null,null,null,null,null,null,null,null,null,null,null,null,null,null,null,null,null,null,null,null,null,null,null,null,null,null,{"$error":"#N/A"},{"$error":"#N/A"}]
[null,{"$f":"Databáza!E160","v":0},{"$f":"VLOOKUP(B170,Materiál!B:J,2,FALSE)","v":{"$error":"#N/A"}},{"$f":"Databáza!F160","v":0},{"$f":"VLOOKUP(B170,Materiál!B:J,3,FALSE)","v":{"$error":"#N/A"}},{"$f":"VLOOKUP(B170,Materiál!B:J,5,FALSE)","v":{"$error":"#N/A"}},{"$f":"VLOOKUP(B170,Materiál!B:J,4,FALSE)","v":{"$error":"#N/A"}},null,{"$f":"VLOOKUP(B170,Materiál!B:J,9,FALSE)","v":{"$error":"#N/A"}},null,null,"-","",null,{"$f":"VLOOKUP(B170,Materiál!B:J,8,FALSE)","v":{"$error":"#N/A"}},null,null,null,null,null,null,null,null,null,null,null,null,null,null,null,null,null,null,null,null,null,null,null,null,null,null,null,null,null,null,null,null,null,null,null,null,null,null,null,null,null,null,null,null,null,null,null,null,null,null,{"$error":"#N/A"},{"$error":"#N/A"}]
[null,{"$f":"Databáza!E161","v":0},{"$f":"VLOOKUP(B171,Materiál!B:J,2,FALSE)","v":{"$error":"#N/A"}},{"$f":"Databáza!F161","v":0},{"$f":"VLOOKUP(B171,Materiál!B:J,3,FALSE)","v":{"$error":"#N/A"}},{"$f":"VLOOKUP(B171,Materiál!B:J,5,FALSE)","v":{"$error":"#N/A"}},{"$f":"VLOOKUP(B171,Materiál!B:J,4,FALSE)","v":{"$error":"#N/A"}},null,{"$f":"VLOOKUP(B171,Materiál!B:J,9,FALSE)","v":{"$error":"#N/A"}},null,null,"-","",null,{"$f":"VLOOKUP(B171,Materiál!B:J,8,FALSE)","v":{"$error":"#N/A"}},null,null,null,null,null,null,null,null,null,null,null,null,null,null,null,null,null,null,null,null,null,null,null,null,null,null,null,null,null,null,null,null,null,null,null,null,null,null,null,null,null,null,null,null,null,null,null,null,null,null,{"$error":"#N/A"},{"$error":"#N/A"}]
[null,{"$f":"Databáza!E162","v":0},{"$f":"VLOOKUP(B172,Materiál!B:J,2,FALSE)","v":{"$error":"#N/A"}},{"$f":"Databáza!F162","v":0},{"$f":"VLOOKUP(B172,Materiál!B:J,3,FALSE)","v":{"$error":"#N/A"}},{"$f":"VLOOKUP(B172,Materiál!B:J,5,FALSE)","v":{"$error":"#N/A"}},{"$f":"VLOOKUP(B172,Materiál!B:J,4,FALSE)","v":{"$error":"#N/A"}},null,{"$f":"VLOOKUP(B172,Materiál!B:J,9,FALSE)","v":{"$error":"#N/A"}},null,null,"-","",null,{"$f":"VLOOKUP(B172,Materiál!B:J,8,FALSE)","v":{"$error":"#N/A"}},null,null,null,null,null,null,null,null,null,null,null,null,null,null,null,null,null,null,null,null,null,null,null,null,null,null,null,null,null,null,null,null,null,null,null,null,null,null,null,null,null,null,null,null,null,null,null,null,null,null,{"$error":"#N/A"},{"$error":"#N/A"}]
[null,{"$f":"Databáza!E163","v":0},{"$f":"VLOOKUP(B173,Materiál!B:J,2,FALSE)","v":{"$error":"#N/A"}},{"$f":"Databáza!F163","v":0},{"$f":"VLOOKUP(B173,Materiál!B:J,3,FALSE)","v":{"$error":"#N/A"}},{"$f":"VLOOKUP(B173,Materiál!B:J,5,FALSE)","v":{"$error":"#N/A"}},{"$f":"VLOOKUP(B173,Materiál!B:J,4,FALSE)","v":{"$error":"#N/A"}},null,{"$f":"VLOOKUP(B173,Materiál!B:J,9,FALSE)","v":{"$error":"#N/A"}},null,null,"-","",null,{"$f":"VLOOKUP(B173,Materiál!B:J,8,FALSE)","v":{"$error":"#N/A"}},null,null,null,null,null,null,null,null,null,null,null,null,null,null,null,null,null,null,null,null,null,null,null,null,null,null,null,null,null,null,null,null,null,null,null,null,null,null,null,null,null,null,null,null,null,null,null,null,null,null,{"$error":"#N/A"},{"$error":"#N/A"}]
[null,{"$f":"Databáza!E164","v":0},{"$f":"VLOOKUP(B174,Materiál!B:J,2,FALSE)","v":{"$error":"#N/A"}},{"$f":"Databáza!F164","v":0},{"$f":"VLOOKUP(B174,Materiál!B:J,3,FALSE)","v":{"$error":"#N/A"}},{"$f":"VLOOKUP(B174,Materiál!B:J,5,FALSE)","v":{"$error":"#N/A"}},{"$f":"VLOOKUP(B174,Materiál!B:J,4,FALSE)","v":{"$error":"#N/A"}},null,{"$f":"VLOOKUP(B174,Materiál!B:J,9,FALSE)","v":{"$error":"#N/A"}},null,null,"-","",null,{"$f":"VLOOKUP(B174,Materiál!B:J,8,FALSE)","v":{"$error":"#N/A"}},null,null,null,null,null,null,null,null,null,null,null,null,null,null,null,null,null,null,null,null,null,null,null,null,null,null,null,null,null,null,null,null,null,null,null,null,null,null,null,null,null,null,null,null,null,null,null,null,null,null,{"$error":"#N/A"},{"$error":"#N/A"}]
[null,{"$f":"Databáza!E165","v":0},{"$f":"VLOOKUP(B175,Materiál!B:J,2,FALSE)","v":{"$error":"#N/A"}},{"$f":"Databáza!F165","v":0},{"$f":"VLOOKUP(B175,Materiál!B:J,3,FALSE)","v":{"$error":"#N/A"}},{"$f":"VLOOKUP(B175,Materiál!B:J,5,FALSE)","v":{"$error":"#N/A"}},{"$f":"VLOOKUP(B175,Materiál!B:J,4,FALSE)","v":{"$error":"#N/A"}},null,{"$f":"VLOOKUP(B175,Materiál!B:J,9,FALSE)","v":{"$error":"#N/A"}},null,null,"-","",null,{"$f":"VLOOKUP(B175,Materiál!B:J,8,FALSE)","v":{"$error":"#N/A"}},null,null,null,null,null,null,null,null,null,null,null,null,null,null,null,null,null,null,null,null,null,null,null,null,null,null,null,null,null,null,null,null,null,null,null,null,null,null,null,null,null,null,null,null,null,null,null,null,null,null,{"$error":"#N/A"},{"$error":"#N/A"}]
[null,{"$f":"Databáza!E166","v":0},{"$f":"VLOOKUP(B176,Materiál!B:J,2,FALSE)","v":{"$error":"#N/A"}},{"$f":"Databáza!F166","v":0},{"$f":"VLOOKUP(B176,Materiál!B:J,3,FALSE)","v":{"$error":"#N/A"}},{"$f":"VLOOKUP(B176,Materiál!B:J,5,FALSE)","v":{"$error":"#N/A"}},{"$f":"VLOOKUP(B176,Materiál!B:J,4,FALSE)","v":{"$error":"#N/A"}},null,{"$f":"VLOOKUP(B176,Materiál!B:J,9,FALSE)","v":{"$error":"#N/A"}},null,null,"-","",null,{"$f":"VLOOKUP(B176,Materiál!B:J,8,FALSE)","v":{"$error":"#N/A"}},null,null,null,null,null,null,null,null,null,null,null,null,null,null,null,null,null,null,null,null,null,null,null,null,null,null,null,null,null,null,null,null,null,null,null,null,null,null,null,null,null,null,null,null,null,null,null,null,null,null,{"$error":"#N/A"},{"$error":"#N/A"}]

{"sheet":"Databáza","index":1,"n_rows":4,"n_cols":12,"rows_kept":4,"cut":false,"hidden":false,"merged":[]}
[]
[null,"Naskenovaný čiarový kód","Avex","Riadený sklad","Materiál","Lot number","Číslo záznamu","Príjem","Množstvo","Počet ks","Expirácia","Kvalita"]
[null,".L0;940;GA10-000003;R-Q-1812-F;110000515109;20200923;10000;ST;20210923;",".L0",940,"GA10-000003","R-Q-1812-F",110000515109,20200923,10000,"ST",20210923]
[null,".L0;940;GA10-000003;R-Q-1812-F;110000515109;20200923;10000;ST;20210923;",".L0",940,"GA10-000003","R-Q-1812-F",110000515109,20200923,10000,"ST",20210923]

{"sheet":"Materiál","index":2,"n_rows":20,"n_cols":10,"rows_kept":20,"cut":false,"hidden":false,"merged":[]}
[]
[null,"JK","Názov","Druh materiálu","Tolerancia","Jednotka","Puzdro","Osádzanie","Skratka","Dodávateľ"]
[null,"GA10-000001","Kondenzátor","220pF/50V,COG",5,"pF","0402","SMT","elp","RM Component"]
[null,"GA10-000002","Kondenzátor","1uF/16V,X7R",10,"uF","0603","SMT","elp","Rutronik"]
[null,"GA10-000003","Kondenzátor","100nF/16V,X7R",10,"nF","0402","SMT","elp","RM Component"]
[null,"GA10-000004","Kondenzátor","100pF/50V,COG",5,"pF","0402","SMT","elp","RM Component"]
[null,"GA10-000005","Kondenzátor","10pF/50V,COG","0.5pF","pF","0402","SMT","elp","RM Component"]
[null,"GA10-000006","Kondenzátor","3pF/50V,COG","0.25pF","pF","0402","SMT","elp","RM Component"]
[null,"GA20-000001","Dióda","ESD, 7V, obojsmerná",5,"V","SOD882","SMT","ela","Mouser"]
[null,"GA23-000001","Dióda zenerová","5.6V",5,"V","SOD123","SMT","ela","IC Blue"]
[null,"GA40-000001","IC","SMD-IC, LED-Driver, SMRTB-1250, 3628","-","-","3628","SMT","kon","Dominant"]
[null,"GA50-000001","Konektor","4P","-","-","nanoMQS","SMT","kon","GA"]
[null,"GA50-000002","Konektor","4P,Silver pin","-","-","nanoMQS","SMT","kon","W+P"]
[null,"GA70-000001","DPS","BMW I20 Front-Left,FR4,1mm,730.9x10.4mm,10x","-","-","-","SMT","dps","ICAPE"]
[null,"GA70-000002","DPS","BMW I20 Front-Right,FR4,1mm,730.9x10.5mm,10x","-","-","-","SMT","dps","ICAPE"]
[null,"GA70-000003","DPS","BMW I20 Rear-Left, 10-násobná","-","-","-","SMT","dps","ICAPE"]
[null,"GA70-000004","DPS","BMW I20 Rear-Right, 10-násobná","-","-","-","SMT","dps","ICAPE"]
[null,"GA80-000001","Cievka","22uH, 0.25A, 0.5Ohm",30,"uH","1210","SMT","elp","Farnel"]
[null,"GA80-000002","Cievka","11uH, 0.3A, 0.4Ohm",30,"uH","1210","SMT","elp","Mouser"]
[null,"GA80-000003","Cievka","75nH, 0.2A, 1.5Ohm",5,"nH","0402","SMT","elp","Mouser"]